Cogmind - Beta 16 @@@ ROGUE MODE // 2025.10.22 @ 13:56:48 Player: szymekc Result: Defending 0bPrime! Performance ------------- Evolutions (8) 4000 Regions Visited (23) 4600 Robots Destroyed (464) 2320 Value Destroyed (28413) 28413 Prototype IDs (185) 3700 Alien Tech Used (4) 800 Bonus (36947) 36947 TOTAL SCORE: 80780 Bonus ------- High Alert Combat Kills 16137 Follower Combat Kills 64 Destroyed Unchained 1000 Forged Quantum Companion 2000 Registered with UFD 300 Met Optimus in HQ 500 Met Zhirov 300 Met Warlord at Base 500 MAIN.C Attacked Warlord 500 Warlord Defense Kills 220 Met Optimus at Protoforge 1000 Completed Drillbomb Mission10000 Optimus Survived to 0b1 3000 Win 3000 Friendly Fire -1574 Cogmind --------- Core Integrity 438/1450 Matter 300/300 Energy 1140/1140 System Corruption 3% Temperature Cool (0) Movement Flying (16) Location 0bPrime Parts ------- > --- POWER (2) -------- Concept Zero-point Core Concept Zero-point Core > --- PROPULSION (8) --- Impulse Thruster Array Experimental Biomechanical Wings Experimental Biomechanical Wings Experimental Biomechanical Wings Concept Fieldthrust Drive Concept Fieldthrust Drive Concept Fieldthrust Drive > --- UTILITY (12) ----- Concept Antigrav Storage Unit Concept Chromion Battery Gravity Neutralizer Experimental Optical Array Concept Melee Reflex Suite Concept Weapon Articulator Experimental Core Analyzer Nanoactuators Experimental Reaction Control System Experimental Cloaking Device Experimental Propulsion Shielding Medium Regenerative Plating > --- WEAPON (2) ------- Hypervelocity Multirail Superquantum Companion > --- INVENTORY (25) --- Experimental Antigrav System Gravjet Array Concept Combat Aerolev Unit Concept Gyrokinetic System Concept Gyrokinetic System Concept Gyrokinetic System Concept Gyrokinetic System Graphene Brace Concept Plasma Driver Concept EMP Blanket Launcher Experimental Neutron Missile Launcher Concept Tiamat Rocket Array Peak State ------------ > --- POWER ------------ Improved Quantum Reactor Concept Zero-point Core > --- PROPULSION ------- Impulse Thruster Array Experimental Biomechanical Wings Experimental Biomechanical Wings Experimental Biomechanical Wings Concept Fieldthrust Drive Concept Fieldthrust Drive Concept Fieldthrust Drive > --- UTILITY ---------- Concept Antigrav Storage Unit Gravity Neutralizer Concept Melee Reflex Suite Concept Weapon Articulator Experimental Core Analyzer Nanoactuators Experimental Reaction Control System Experimental Cloaking Device Medium Regenerative Plating Crosscalibrator Concept Navigation Harness > --- WEAPON ----------- Concept Deflector Sword Superquantum Companion > --- INVENTORY -------- Improved Quantum Reactor Concept Zero-point Core Experimental Antigrav System Gravjet Array Concept Combat Aerolev Unit Concept Gyrokinetic System Concept Gyrokinetic System Concept Gyrokinetic System Concept Gyrokinetic System Concept Chromion Battery Tactical Coordination Suite Experimental Propulsion Shielding Experimental Weapon Shielding Graphene Brace Experimental Shield Generator Transdimensional Reconstructor Transdimensional Reconstructor Concept Plasma Driver Hypervelocity Multirail Concept EMP Blanket Launcher Experimental Neutron Missile Launcher Concept Tactical Fusion Warhead Concept Tiamat Rocket Array [Rating: 279] Favorites ----------- Power Improved Quantum Reactor Engine Ion Engine Power Core Light Fission Core Reactor Improved Quantum Reactor Propulsion Light Treads Treads Light Treads Wheel Subdweller Monowheel Hover Unit Antigrav System Flight Unit Electron Diverter Utility Advanced Melee Analysis Suite Device Nanoactuators Storage Medium Storage Unit Processor Advanced Melee Analysis Suite Hackware Advanced Hacking Suite Protection Improved Medium Armor Plating Weapon Companion Sword Energy Gun Medium Laser Energy Cannon Subdweller Beam Cannon Ballistic Gun Hypervelocity Multirail Ballistic Cannon Battle Cannon Launcher Concept EMP Blanket Launcher Special Weapon Mining Laser Slashing Weapon Companion Sword Build | -11 -10 -10 -10 -7 -5 -5 -5 -5 -5 -5 -4 -4 -4 -4 -4 -4 -4 -3 -3 -3 -2 -2 -2 ------- Run | Yrd Mat Min Sub Scr Fac Was Fac Upp Upp Zhi Pro Fac Was Fac Upp Upp War Pro Res Tes Res Qua Frg Slots Evolved 16 | . . . . . 10 . . . . . . 2 . . . . . . 2 . 2 . . Power 1 | . . . . . . . . . . . . 1 . . . . . . . . . . . Propulsion 5 | . . . . . 4 . . . . . . 1 . . . . . . . . . . . Utility 10 | . . . . . 6 . . . . . . . . . . . . . 2 . 2 . . Weapon . | . . . . . . . . . . . . . . . . . . . . . . . . Parts Attached 247 | 7 9 1 10 5 16 . 20 2 2 5 1 9 . 9 2 . 34 . 13 13 12 6 71 Power 26 | 1 2 . 1 1 . . 4 . 1 1 . 1 . . . . 6 . . . 1 . 7 Engine 6 | 1 2 . 1 . . . . . . . . . . . . . 2 . . . . . . Core 11 | . . . . 1 . . 4 . 1 . . 1 . . . . 2 . . . . . 2 Reactor 9 | . . . . . . . . . . 1 . . . . . . 2 . . . 1 . 5 Propulsion 67 | 2 . . 3 2 4 . 1 . . 1 . 6 . 3 . . 12 . 6 6 1 2 18 Treads 4 | 2 . . 2 . . . . . . . . . . . . . . . . . . . . Leg . | . . . . . . . . . . . . . . . . . . . . . . . . Wheel 3 | . . . 1 2 . . . . . . . . . . . . . . . . . . . Hover 8 | . . . . . . . . . . 1 . . . 1 . . 4 . . . . . 2 Flight 52 | . . . . . 4 . 1 . . . . 6 . 2 . . 8 . 6 6 1 2 16 Utility 123 | 2 4 . 2 1 11 . 14 2 1 2 . 2 . 6 1 . 10 . 6 4 10 4 41 Device 55 | 2 2 . . . 4 . 4 . 1 . . 1 . 2 1 . 6 . 1 3 7 4 17 Storage 12 | . 2 . 1 . 1 . 2 . . 1 . . . 1 . . 1 . 1 . . . 2 Processor 24 | . . . . . 5 . 3 1 . . . . . 1 . . 2 . 2 . . . 10 Hackware 12 | . . . . . 1 . 4 . . . . 1 . 2 . . 1 . 1 1 1 . . Protection 20 | . . . 1 1 . . 1 1 . 1 . . . . . . . . 1 . 2 . 12 Artifact . | . . . . . . . . . . . . . . . . . . . . . . . . Weapon 31 | 2 3 1 4 1 1 . 1 . . 1 1 . . . 1 . 6 . 1 3 . . 5 Energy Gun 4 | 1 . . . . . . . . . . . . . . . . 3 . . . . . . Energy Cannon 8 | . 2 . 1 . 1 . 1 . . . . . . . 1 . . . . 1 . . 1 Ballistic Gun 3 | 1 . . 1 . . . . . . . . . . . . . . . . 1 . . . Ballistic Cannon 3 | . . . 2 . . . . . . . . . . . . . . . . . . . 1 Launcher 6 | . . 1 . . . . . . . . 1 . . . . . 1 . . 1 . . 2 Special Weapon 2 | . 1 . . . . . . . . 1 . . . . . . . . . . . . . Impact Weapon . | . . . . . . . . . . . . . . . . . . . . . . . . Slashing Weapon 5 | . . . . 1 . . . . . . . . . . . . 2 . 1 . . . 1 Piercing Weapon . | . . . . . . . . . . . . . . . . . . . . . . . . Special Melee Weapon . | . . . . . . . . . . . . . . . . . . . . . . . . Unidentified Prototypes 66 | . . . . 1 . . 3 1 . 5 . . . 1 1 . 17 . 4 6 5 2 20 Parts Lost 28 | . . . 5 . . . 4 . . . . 5 . 6 . . 1 . . . 1 . 6 Power 5 | . . . 2 . . . 1 . . . . . . 1 . . 1 . . . . . . Propulsion 9 | . . . 1 . . . . . . . . 3 . 4 . . . . . . . . 1 Utility 11 | . . . . . . . 3 . . . . 1 . 1 . . . . . . 1 . 5 Weapon 3 | . . . 2 . . . . . . . . 1 . . . . . . . . . . . Highest Loss Streak 4 | . . . 2 . . . 2 . . . . 4 . 3 . . 1 . . . 1 . 2 To Critical Strikes 1 | . . . . . . . . . . . . 1 . . . . . . . . . . . Average Backups 12 | 2 10 15 15 19 5 6 6 8 9 9 9 9 8 8 8 8 8 7 8 9 8 9 12 Power . | . 1 2 . . . 1 . . . . 1 . 1 . 1 1 1 1 1 . 1 1 . Propulsion 2 | . 1 2 3 6 . . . 1 1 1 1 . . . . . . 1 . . . 1 4 Utility 4 | . 4 7 6 6 . 1 2 3 3 3 3 4 3 3 3 4 3 3 3 3 3 2 3 Weapon 3 | 1 3 4 5 3 1 2 1 1 2 2 2 1 1 1 1 1 1 1 1 2 2 3 3 Tool/Special . | . . . . . . . . . . . . . . . . . . . . . . . . Unused Backups 49 | . 1 . 2 7 5 1 1 . 1 2 . 4 . 1 . . . . 1 2 2 . 19 Power 6 | . 1 . 1 1 . . 1 . . . . . . . . . . . . 1 . . 1 Propulsion 13 | . . . . . 2 1 . . . . . . . . . . . . . . . . 10 Utility 21 | . . . . 1 3 . . . 1 1 . 4 . 1 . . . . 1 1 2 . 6 Weapon 7 | . . . 1 5 . . . . . . . . . . . . . . . . . . 1 Tool/Special 2 | . . . . . . . . . . 1 . . . . . . . . . . . . 1 Average Slot Usage (%) 87 | . 100 100 99 95 66 80 74 70 70 69 70 69 66 66 47 50 77 90 86 86 86 87 93 Engine 4 | . 14 14 13 3 . . . . . . . . . . . . 6 . . . . . . Core 3 | . . . . 10 5 5 4 5 5 5 5 7 10 5 . . . . . . . . 3 Reactor 1 | . . . . . . . . . . . . . . 2 . . 1 10 9 9 8 8 4 Treads 13 | . 28 28 27 27 . . . . . . . . . . . . . . . . . . . Flight 10 | . . . . . 13 15 10 10 10 10 10 11 21 19 10 10 20 35 30 31 29 29 28 Device 10 | . 14 14 11 . 13 15 11 10 10 11 15 9 10 8 5 10 6 10 9 6 15 22 22 Storage 9 | . 13 14 14 14 5 5 5 5 5 5 5 4 5 5 5 5 5 5 4 4 4 4 4 Processor 8 | . . . . . 15 25 25 27 30 26 20 17 5 9 10 10 11 15 13 13 8 6 11 Hackware 2 | . . . . . 2 5 8 2 . . . 3 5 5 5 5 8 10 10 10 10 8 . Protection 6 | . . . 2 14 5 5 4 5 5 5 10 8 3 4 . . 2 . 2 4 4 4 7 Energy Cannon 6 | . 15 25 16 9 . . . . . . . . . . . . . . . . . . . Ballistic Gun 1 | . 9 . 1 . . . . . . . . . . . . . . . . . . . 2 Ballistic Cannon 2 | . . . 4 9 . . . . . . . . . . . . . . . . . . . Special Weapon 1 | . 2 . 5 . . . . . . . . . . . . . . . . . . . . Slashing Weapon 3 | . . . . 3 5 5 5 5 5 5 5 4 5 5 5 5 4 5 5 4 4 4 4 Peak Build Rating 279 | 9 9 8 16 27 104 104 116 123 122 119 122 139 101 117 72 68 143 146 173 190 213 216 279 Average Rating 85 | 6 7 8 12 22 87 103 107 117 115 114 117 123 100 102 62 63 115 139 157 173 194 203 239 On Entrance 93 | . 9 8 8 16 27 104 104 113 117 114 117 117 83 101 61 63 63 139 139 168 177 205 202 Avg Prop Armor Cover (%) 10 | . . . 12 . . . . . . . . . . 17 14 14 9 . . . . . . Naked Turns . | . . . . . . . . . . . . . . . . . . . . . . . . Heaviest Build 105 | 8 50 32 99 105 41 33 37 36 39 39 39 49 42 51 17 17 48 48 62 63 72 73 84 Greatest Support 84 | 40 40 40 40 40 38 38 39 39 39 39 39 59 51 57 17 17 53 53 67 67 80 74 84 Greatest Overweight (x) 16 | . 1 . 2 2 1 . . . . 1 . 2 . 4 . 5 1 . 1 . 1 . 16 Average Overweight (x) . | . . . . 2 . . . . . . . . . . . . . . . . . . . Largest Inventory Capacity 25 | 5 20 15 25 25 25 10 10 10 10 10 10 10 10 15 10 10 10 10 10 10 10 10 25 Average Capacity 16 | 5 18 15 18 25 10 10 10 10 10 10 10 10 10 11 10 10 10 10 10 10 10 10 18 Most Carried 25 | 4 15 15 24 25 23 10 10 10 10 10 10 10 9 12 10 10 10 10 10 10 10 10 25 Average Carried 14 | 2 10 15 17 23 8 9 9 9 9 9 9 9 8 9 9 9 9 9 9 9 9 9 15 Final Capacity 25 | 5 15 15 25 25 10 10 10 10 10 10 10 10 10 10 10 10 10 10 10 10 10 10 25 Final Carried 23 | 4 15 15 23 21 10 10 9 10 10 10 10 10 9 10 10 10 10 10 10 10 10 10 13 Class Distribution -------------------- 50% | Mutant 11% | Scavenger-Sprinter 6% | Hacker-Scout 5% | Scout 5% | Scavenger-Mutant 4% | Hacker-Sprinter 4% | Ninja 3% | Hacker-Ninja Dominant Class ---------------- Mutant | -10/Materials Mutant | -10/Mines Mutant | -10/Subcaves Mutant | -7/Scraptown Scout | -5/Factory Scout | -5/Waste Hacker-Mutant | -5/Factory Mutant | -5/Upper Caves Mutant | -5/Upper Caves Mutant | -5/Zhirov Mutant | -4/Proximity Caves Mutant | -4/Factory Sprinter | -4/Waste Ninja | -4/Factory Scout | -4/Upper Caves Ninja | -4/Upper Caves Hacker-Scout | -4/Warlord Scavenger-Ninja | -3/Proximity Caves Hacker-Ninja | -3/Research Hacker-Scout | -3/Testing Hacker-Sprinter | -2/Research Hacker-Sprinter | -2/Quarantine Scavenger-Sprinter | -2/Protoforge Resources | -11 -10 -10 -10 -7 -5 -5 -5 -5 -5 -5 -4 -4 -4 -4 -4 -4 -4 -3 -3 -3 -2 -2 -2 ----------- Run | Yrd Mat Min Sub Scr Fac Was Fac Upp Upp Zhi Pro Fac Was Fac Upp Upp War Pro Res Tes Res Qua Frg Matter Collected 8127 | 297 132 . 524 20 216 . 531 28 70 54 134 299 . 187 33 64 539 . 170 236 370 133 4090 Remotely . | . . . . . . . . . . . . . . . . . . . . . . . . Salvage Created 29879 | 252 510 . 582 . 814 . 2867 142 166 54 186 1108 . 696 76 148 54 . 727 721 1411 815 18550 Parts 1215 | 20 28 . 36 . 32 . 116 7 10 . 10 42 . 27 . 6 2 . 22 29 61 24 743 Haulers Intercepted 31 | . 2 . . . 5 . 6 . . . . 2 . 1 . . . . 4 2 5 2 2 Recyclers Shooed 5 | . . . . . . . 1 . . . . 1 . . . . . . 1 2 . . . Parts Field Recycled . | . . . . . . . . . . . . . . . . . . . . . . . . Retrieved Matter . | . . . . . . . . . . . . . . . . . . . . . . . . Parts Self-Destructed 45 | . . . 19 . . . . 1 9 . 7 . . . 7 2 . . . . . . . Prevented . | . . . . . . . . . . . . . . . . . . . . . . . . Parts Restored 2 | . . . . . . . . . . . . . . . . . . . . . . . 2 Faulty 2 | . . . . . . . . . . . . . . . . . . . . . . . 2 Kills | -11 -10 -10 -10 -7 -5 -5 -5 -5 -5 -5 -4 -4 -4 -4 -4 -4 -4 -3 -3 -3 -2 -2 -2 ------- Run | Yrd Mat Min Sub Scr Fac Was Fac Upp Upp Zhi Pro Fac Was Fac Upp Upp War Pro Res Tes Res Qua Frg Combat Hostiles Destroyed 359 | . 9 1 15 . 2 . 38 . 5 . 5 18 . 6 . . 1 . 1 5 10 3 240 Melee 125 | . . . . . 2 . 38 . 5 . . 11 . 6 . . . . 1 2 9 3 48 Guns 119 | . 2 . . . . . . . . . . . . . . . . . . 3 . . 114 Cannons 27 | . 7 . 11 . . . . . . . . . . . . . 1 . . . . . 8 AOE 66 | . . 1 4 . . . . . . . 5 7 . . . . . . . . . . 49 Classes Destroyed 33 | 3 5 1 2 . 1 . 2 . 1 . 1 . . . . . 1 . . 1 . . 15 Worker 9 | 1 1 . . . . . 2 . . . . . . 1 . . . . . 4 . . . Builder 3 | . . . . . . . . . . . . . . . . . . . . 2 . 1 . Tunneler 6 | 6 . . . . . . . . . . . . . . . . . . . . . . . Hauler 32 | . 2 . . . 5 . 6 . . . . 2 . 1 . . . . 4 2 5 2 3 Recycler 9 | 1 1 . . . 1 . 1 . . . . 2 . 1 . . . . . 1 . 1 . Carrier 1 | . . . . . . . . . . . . . . . . . . . . . . . 1 Minesweeper 1 | . . . . . . . . . 1 . . . . . . . . . . . . . . Mechanic 9 | . 1 . . . . . . . . . . . . . . . . . . . . . 8 Operator 9 | . . . . . . . 1 . . . . 1 . . . . . . 2 . . 2 3 Drone 7 | . . . . . . . . . . . . . . . . . . . . . . . 7 Watcher 24 | . 1 . . . 2 . 3 . . . . 1 . 1 . . . . 5 3 2 2 4 Swarmer 61 | . 3 . 4 . . . 9 . 5 . 5 11 . . . . . . . . . . 24 Saboteur 6 | . . . . . . . . . . . . . . . . . . . . . . . 6 Grunt 84 | . 6 . 2 . . . 17 . . . . 2 . 3 . . . . . 4 4 2 44 Brawler 14 | . . . . . . . . . . . . . . . . . . . . . . . 14 Duelist 9 | . . . . . . . . . . . . . . . . . . . . . . . 9 Protector 9 | . . . . . . . . . . . . . . . . . . . . . . . 9 Researcher 3 | . . . . . . . . . . . . . . . . . . . . . . . 3 Sentry 22 | . . . 1 . . . 2 . . . . 1 . . . . . . 1 . 1 . 16 Specialist 1 | . . . . . . . . . . . . . . . . . . . . . . . 1 Hunter 28 | . . . . . . . 4 . . . . . . . . . . . . . . . 24 Programmer 35 | . . . . . 2 . 6 . . . . 4 . 3 . . . . . 1 5 . 14 Hotshot 10 | . . . . . . . . . . . . . . . . . . . . . . . 10 Decapitator 8 | . . . . . . . . . . . . . . . . . . . . . . . 8 Immortal 4 | . . . . . . . . . . . . . . . . . . . . . . . 4 Overlord 1 | . . . . . . . . . . . . . . . . . . . . . . . 1 Striker 18 | . . . . . . . . . . . . . . . . . 1 . . . . . 17 Executioner 27 | . . . . . . . . . . . . . . . . . . . . . . . 27 V-Series 4 | . . . . . . . . . . . . . . . . . . . . . . . 4 Subdweller 8 | . . . 8 . . . . . . . . . . . . . . . . . . . . Scrapper 1 | . . . . . . . . . . . . . . . . . . . . . . . 1 Elite 1 | . . . . . . . . . . . . . . . . . . . . . . . 1 Scrapoid 1 | . . . . . . . . . . . . . . . . . . . . . . . 1 Packrat 1 | . . . . . . . . . . . . . . . 1 . . . . . . . . Samaritan 4 | . . . . . . . . . . . 3 . . . . 1 . . . . . . . Assembled 1 | . . 1 . . . . . . . . . . . . . . . . . . . . . Commander 1 | . . . . . . . . 1 . . . . . . . . . . . . . . . Best Kill Streak 28 | 2 3 1 4 . 2 . 14 . 4 . 5 5 . 2 . . 1 . 4 13 7 4 28 Combat Bots Only 27 | . 2 1 4 . 2 . 9 . 4 . 5 5 . 2 . . 1 . 1 4 4 3 27 Max Kills in Single Turn 6 | 1 2 1 4 . 1 . 2 1 1 . 3 4 . 1 1 1 1 . 1 4 1 1 6 Gunslinging . | . . . . . . . . . . . . . . . . . . . . . . . . Exploded 6 | . . 1 4 . . . . . . . 3 3 . . . . . . . . . . 6 Melee 2 | . . . . . 1 . 2 . 1 . . 1 . 1 . . . . 1 1 1 1 2 Uniques/NPCs Destroyed 1 | . . . . . . . . . . . . . . . . . . . . . . 1 . 6S-H0T (-2/Quarantine) Combat | -11 -10 -10 -10 -7 -5 -5 -5 -5 -5 -5 -4 -4 -4 -4 -4 -4 -4 -3 -3 -3 -2 -2 -2 -------- Run | Yrd Mat Min Sub Scr Fac Was Fac Upp Upp Zhi Pro Fac Was Fac Upp Upp War Pro Res Tes Res Qua Frg Hostile Shots Fired 1031 | . 57 3 52 . 8 . 189 . 22 . 13 171 . 79 . . 18 . 5 26 63 37 288 Missed 439 | . 11 1 13 . 5 . 79 . 8 . 6 82 . 21 . . 10 . 2 16 12 5 168 Deflected 4 | . . . . . . . . . . . . . . . . . . . . . 2 . 2 Hits 592 | . 46 2 39 . 3 . 110 . 14 . 7 89 . 58 . . 8 . 3 10 51 32 120 Melee 5 | . . 1 . . . . . . . . . . . . . . . . . . . . 4 Projectile 587 | . 46 1 39 . 3 . 110 . 14 . 7 89 . 58 . . 8 . 3 10 51 32 116 AOE 3 | . . . . . . . . . . . . . . . . . . . . . . . 3 Critical Strikes 41 | . . . 2 . . . 4 . . . . 5 . 4 . . 1 . . 2 7 5 11 Actively Blocked 19 | . . . . . . . . . . . . . . . . . . . . . 6 5 8 Part Disruptions 3 | . . . . . . . . . . . . . . . . 2 . . . . . . 1 Damage Taken 13207 | . 424 72 712 . 64 . 2175 . 212 . 118 1835 . 1255 . 67 156 . 91 193 1089 533 4211 Core 2338 | . 84 26 113 . 25 . 242 . 51 . 7 397 . 275 . 27 83 . 34 10 177 101 686 Absorbed by Shields 46 | . . . . . . . . . . . . . . . . . 14 . . . . . 32 Redirected to Shielding 777 | . . . . . . . . . . . 23 128 . . . . . . . . . . 626 Ignored by Resistances 153 | . . . . . . . . . . . . . . . . . . . . . . 153 . Regen/Repaired (Parts) 954 | . . . . . . . 430 . . . . 35 . . . . 76 . . . . . 413 Core Remaining (%) 55 | 100 . . . 10 . . . . . . 67 . . . . . . 32 . 96 . . 30 Volleys Fired 535 | 27 44 8 104 . 5 . 12 3 1 . 4 10 . . 3 4 10 1 1 8 13 1 276 Largest 2 | 2 2 2 2 . 1 . 1 1 1 . 1 1 . . 1 1 2 1 1 1 1 1 1 Hottest 160 | 70 160 120 120 . 85 . 98 98 98 . 98 98 . . 105 98 120 105 105 50 50 50 150 Shots Fired 616 | 54 82 11 118 . 5 . 12 3 1 . 4 10 . . 3 4 12 1 1 8 13 1 273 Gun 338 | 54 26 . 11 . . . . . . . . . . . . . 5 . . 4 . . 238 Cannon 177 | . 50 6 55 . 5 . 12 3 1 . 2 5 . . 3 4 5 1 1 4 13 1 6 Launcher 42 | . . 5 1 . . . . . . . 2 5 . . . . . . . . . . 29 Special 59 | . 6 . 51 . . . . . . . . . . . . . 2 . . . . . . Kinetic 317 | 27 26 . 22 . . . . . . . . . . . . . . . . 4 . . 238 Thermal 250 | 27 56 6 95 . 5 . 12 3 1 . 2 5 . . 3 4 5 1 1 4 13 1 6 Explosive 24 | . . 5 1 . . . . . . . 2 5 . . . . . . . . . . 11 Electromagnetic 18 | . . . . . . . . . . . . . . . . . . . . . . . 18 Entropic 5 | . . . . . . . . . . . . . . . . . 5 . . . . . . Robot Hit Streak 36 | 8 11 4 26 . . . . . . . . 5 . . . . 7 . . . . . 36 Robot Miss Streak 5 | 4 4 1 3 . . . . . . . . . . . . . 2 . . . . . 5 Penetration Max 4 | . . . . . . . . . . . . . . . . . . . . 3 . . 4 Secondary Targets . | . . . . . . . . . . . . . . . . . . . . . . . . Autonomous 38 | . . . . . . . . . . . . . . . . . 4 . 4 . 2 1 27 Shots Hit Robots 811 | 37 48 1 49 . 15 . 137 4 8 1 3 61 . 42 1 4 10 . 20 8 40 28 294 Core Hits 776 | 12 22 3 21 . 9 . 56 2 4 . 7 25 . 14 . 1 3 . 10 24 20 11 532 Critical Kills 123 | . . . . . . . . . . . . . . . . . . . . 3 . . 120 Critical Parts Destroyed 129 | . . . . . . . . . . . . . . . . . . . . 3 . . 126 Critical Strikes 306 | 4 . . . . . . 6 . . . . 8 . 2 . . . . 2 6 2 . 276 Burn 4 | 4 . . . . . . . . . . . . . . . . . . . . . . . Destroy 280 | . . . . . . . . . . . . . . . . . . . . 6 . . 274 Melee Attacks 764 | . . . . . 25 . 174 5 11 1 7 81 . 71 3 10 6 3 48 39 76 45 159 Thermal 1 | . . . . . . . . . . . . . . . . . 1 . . . . . . Impact . | . . . . . . . . . . . . . . . . . . . . . . . . Slashing 763 | . . . . . 25 . 174 5 11 1 7 81 . 71 3 10 5 3 48 39 76 45 159 Piercing . | . . . . . . . . . . . . . . . . . . . . . . . . Sneak Attacks 79 | . . . . . 6 . 10 3 1 . 3 7 . 3 1 1 1 . 5 2 7 12 17 Combat Hostiles 14 | . . . . . . . 1 . . . . . . . . . . . . 1 2 3 7 Follow-up Attacks 14 | . . . . . . . 1 . . . . 3 . 1 . . . . . . 3 . 6 Martial Strikes 9 | . . . . . . . . . . . . . . . . . . . . . . . 9 Damage Inflicted 60597 | 384 761 124 1315 . 991 . 7124 370 455 96 681 3984 . 1841 65 311 689 . 1922 2138 3401 3385 30560 Guns 4727 | 384 157 . 178 . . . . . . . . . . . . . 219 . . 65 . . 3724 Cannons 4992 | . 556 18 957 . . . . . . . . . . . . . 420 . 358 . 164 75 2444 Explosions 15755 | . . 106 180 . . . . . . . 399 752 . . . . . . . 1438 . . 12880 Melee 35075 | . . . . . 991 . 7124 370 455 96 282 3232 . 1841 65 311 50 . 1564 635 3237 3310 11512 Ramming 24 | . 24 . . . . . . . . . . . . . . . . . . . . . . Kinetic 4508 | 173 157 . 389 . . . . . . . . . . . . . . . . 65 . . 3724 Thermal 2537 | 211 580 18 746 . . . . . . . . 165 . . . . 73 . . . . . 744 Explosive 9504 | . . 106 180 . . . . . . . 399 587 . . . . . . . 1438 . . 6794 Electromagnetic 5426 | . . . . . . . . . . . . . . . . . . . . . . . 5426 Impact . | . . . . . . . . . . . . . . . . . . . . . . . . Slashing 35075 | . . . . . 991 . 7124 370 455 96 282 3232 . 1841 65 311 50 . 1564 635 3237 3310 11512 Piercing . | . . . . . . . . . . . . . . . . . . . . . . . . Entropic 219 | . . . . . . . . . . . . . . . . . 219 . . . . . . Phasic 3304 | . . . . . . . . . . . . . . . . . 347 . 358 . 164 75 2360 Highest Corruption 25 | . . . . . 2 2 2 2 2 2 2 2 11 25 25 25 25 . . . . . 3 Average Corruption 5 | . . . . . 1 2 1 2 2 2 2 1 6 15 25 25 25 . . . . . 2 Corruption Purged 2 | . . . . . . . 2 . . . . . . . . . . . . . . . . Corruption Blocked . | . . . . . . . . . . . . . . . . . . . . . . . . Effects 95 | . . . . . 4 1 7 2 1 . 3 8 2 24 8 10 . . . . . . 25 Message Errors 22 | . . . . . . . 3 . . . 1 1 . 7 1 3 . . . . . . 6 Matter Fused 19 | . . . . . 2 . 1 1 . . . 1 . 3 2 2 . . . . . . 7 Heat Flow Errors 8 | . . . . . . 1 1 . . . 1 1 1 . 1 . . . . . . . 2 Energy Discharges 12 | . . . . . . . . . . . . 1 . 3 2 3 . . . . . . 3 Parts Rejected 1 | . . . . . . . . . . . . . . . . . . . . . . . 1 Data Loss (minor) 17 | . . . . . 2 . 2 . . . 1 3 . 3 2 2 . . . . . . 2 Data Loss (major) 4 | . . . . . . . . . 1 . . . . 2 . . . . . . . . 1 Alerts 7 | . . . . . . . . 1 . . . 1 1 4 . . . . . . . . . Misdirections 2 | . . . . . . . . . . . . . . 2 . . . . . . . . . Weapon Failures 3 | . . . . . . . . . . . . . . . . . . . . . . . 3 Overload Shots 1 | . . . . . . . . . . . . . . . . . . . . . . . 1 Overflow Damage 4494 | . 17 . . . 159 . 385 12 35 84 103 502 . 125 46 188 70 . 342 175 144 768 1339 Projectiles 277 | . 17 . . . . . . . . . . . . . . . 70 . 47 . . . 143 Explosions 457 | . . . . . . . . . . . . 126 . . . . . . . 10 . . 321 Melee 3760 | . . . . . 159 . 385 12 35 84 103 376 . 125 46 188 . . 295 165 144 768 875 Knockbacks . | . . . . . . . . . . . . . . . . . . . . . . . . Impact . | . . . . . . . . . . . . . . . . . . . . . . . . Kinetic . | . . . . . . . . . . . . . . . . . . . . . . . . Secondary . | . . . . . . . . . . . . . . . . . . . . . . . . Self-Inflicted Damage 284 | . . 42 . . . . . . . . . 212 . . . . . . . . . . 30 Shots 6 | . . 2 . . . . . . . . . 3 . . . . . . . . . . 1 Rammed 3 | . 3 . . . . . . . . . . . . . . . . . . . . . . Targets Rammed 3 | . 3 . . . . . . . . . . . . . . . . . . . . . . Kicked . | . . . . . . . . . . . . . . . . . . . . . . . . Crushed . | . . . . . . . . . . . . . . . . . . . . . . . . Highest Temperature 387 | 110 242 60 336 . 120 256 218 138 46 . 61 88 64 . 77 163 36 12 18 46 45 387 171 Average Temperature 48 | 40 49 30 54 . 67 142 52 71 26 . 17 24 39 . 48 100 7 9 3 23 16 232 71 Received Heat Transfer 1646 | . 66 . 483 . . . 369 . . . . 193 . 156 . . 57 . . 70 54 18 180 Effects 1 | . 1 . . . . . . . . . . . . . . . . . . . . . . Energy Bleed 1 | . 1 . . . . . . . . . . . . . . . . . . . . . . Siege Activations . | . . . . . . . . . . . . . . . . . . . . . . . . Martial Activations . | . . . . . . . . . . . . . . . . . . . . . . . . Shielding Activations . | . . . . . . . . . . . . . . . . . . . . . . . . Robots Disrupted 6 | . . . . . . . 2 . . . . . . . . . . . 1 . . 1 2 Combat Hostiles 3 | . . . . . . . . . . . . . . . . . . . 1 . . . 2 Robots Corrupted 19 | . . . . . . . . . . . . . . . . . . . . . . . 19 Combat Hostiles 17 | . . . . . . . . . . . . . . . . . . . . . . . 17 Parts Fried 50 | . . . . . . . . . . . . . . . . . . . . . . . 50 Impact Corruptions . | . . . . . . . . . . . . . . . . . . . . . . . . Robots Melted . | . . . . . . . . . . . . . . . . . . . . . . . . Combat Hostiles . | . . . . . . . . . . . . . . . . . . . . . . . . Parts Melted 7 | 3 1 . 2 . . . . . . . . . . 1 . . . . . . . . . Heat Transferred 4099 | 925 1234 37 1073 . . . . . . . . 100 . . . . 56 . . . . . 674 Parts Sabotaged . | . . . . . . . . . . . . . . . . . . . . . . . . Parts Stolen . | . . . . . . . . . . . . . . . . . . . . . . . . Parts Stripped 61 | . . . . . . . . . . . . . . . . . . . 10 4 11 . 36 Power Chain Reactions 10 | . . . . . . . . . . . . . . . . . . . . . . . 10 Alert | -11 -10 -10 -10 -7 -5 -5 -5 -5 -5 -5 -4 -4 -4 -4 -4 -4 -4 -3 -3 -3 -2 -2 -2 ------- Run | Yrd Mat Min Sub Scr Fac Was Fac Upp Upp Zhi Pro Fac Was Fac Upp Upp War Pro Res Tes Res Qua Frg Maximum Alert Level 5 | . 1 . . . . . 3 . . . . 2 . . . . . . . 2 1 1 5 Low Security (%) 59 | 100 94 100 . . 100 100 46 . . . . 40 100 100 . . . . 100 57 96 33 13 Level 1 10 | . 5 . . . . . 12 . . . . 55 . . . . . . . 2 3 66 2 Level 2 6 | . . . . . . . 20 . . . . 3 . . . . . . . 40 . . 3 Level 3 4 | . . . . . . . 21 . . . . . . . . . . . . . . . 2 Level 4 1 | . . . . . . . . . . . . . . . . . . . . . . . 5 Level 5 18 | . . . . . . . . . . . . . . . . . . . . . . . 71 High Security . | . . . . . . . . . . . . . . . . . . . . . . . . Max Security . | . . . . . . . . . . . . . . . . . . . . . . . . Peak Influence 6279 | 5 230 84 . . 50 16 1003 . . . . 472 155 134 . . . . 83 683 296 237 6279 Initial 166 | . . 84 . . . 11 11 . . . . 25 155 101 . . . . . 37 63 166 118 Average 783 | 1 31 60 . . 8 10 367 . . . . 205 152 59 . . . . 36 301 87 207 2587 Influence Increases 12769 | 40 385 14 210 . 185 15 1427 5 145 . 110 779 . 261 . 5 145 . 270 968 599 205 7001 Destroy 0b10 Robot/C 6800 | . 180 . 140 . 40 . 760 . 100 . 100 360 . 120 . . 80 . 20 100 200 40 4560 Destroy 0b10 Robot/NC 605 | 40 30 . . . 40 . 65 5 5 . . 30 . 20 . 5 . . 55 60 35 40 175 Destroy Leader 1044 | . 56 . 10 . 22 . 148 . 10 . 10 66 . 14 . . . . 28 30 44 8 598 Allied During Kill 5 | . . . . . . . . . . . . . . . . . 5 . . . . . . Trap Triggered on 0b10 20 | . . . . . . . 20 . . . . . . . . . . . . . . . . Successful Hack 493 | . 8 . . . 56 . 96 . . . . 67 . 42 . . . . 37 36 44 54 53 Select Force Hacks 60 | . 60 . . . . . . . . . . . . . . . . . . . . . . Disable Machine 885 | . . . . . 15 . . . . . . 90 . 15 . . . . . 435 . 15 315 Anti-Garrison Action 150 | . . . . . . . . . . . . . . . . . . . . . . . 150 Destroy Structure 967 | . 6 14 . . 12 . 68 . . . . 76 . 20 . . . . 40 172 96 33 430 Partial Spotted 360 | . . . . . . 15 30 . . . . 60 . 30 . . . . 75 . 60 15 75 Lose Combat Pursuer 1380 | . 45 . 60 . . . 240 . 30 . . 30 . . . . 60 . 15 135 120 . 645 Influence Decreases 6502 | 40 167 194 99 149 153 31 452 488 207 446 70 375 299 390 16 5 145 . 203 921 417 290 945 Entered New Map 1900 | . . 134 21 149 . 21 5 368 97 446 . 15 289 44 7 . . . . 30 51 130 93 Time Decay 3337 | 40 167 60 68 . 153 10 417 120 110 . 70 310 10 286 9 5 93 . 203 188 206 160 652 Lost Part 230 | . . . 10 . . . 30 . . . . 50 . 60 . . 10 . . . 10 . 60 Lost Ally 62 | . . . . . . . . . . . . . . . . . 42 . . 10 . . 10 Purge Threat 973 | . . . . . . . . . . . . . . . . . . . . 693 150 . 130 Squads Dispatched 84 | . 5 . . . 3 . 21 . . . . 16 . 6 . . . . 7 10 6 2 8 Investigation 35 | . 2 . . . 2 . 11 . . . . 5 . 4 . . . . 3 2 . . 6 Extermination 18 | . . . . . 1 . 5 . . . . 2 . 2 . . . . 2 2 2 2 . Reinforcement 24 | . 3 . . . . . 5 . . . . 6 . . . . . . 2 2 4 . 2 Assault 1 | . . . . . . . . . . . . . . . . . . . . 1 . . . Garrison 6 | . . . . . . . . . . . . 3 . . . . . . . 3 . . . Intercept . | . . . . . . . . . . . . . . . . . . . . . . . . Searches Triggered . | . . . . . . . . . . . . . . . . . . . . . . . . Unchained Authorized 3 | . . . . . . . . . . . . . . . . . . . . 1 1 1 . Construction Impeded 1 | . . . . . . . . . . . . . . . . . . . . 1 . . . Haulers Reinforced 10 | . . . . . . . 4 . . . . 1 . . . . . . 2 . 3 . . Active Scanning Responses . | . . . . . . . . . . . . . . . . . . . . . . . . Cargo Convoy Interrupts 1 | . . . . . . . 1 . . . . . . . . . . . . . . . . Stealth | -11 -10 -10 -10 -7 -5 -5 -5 -5 -5 -5 -4 -4 -4 -4 -4 -4 -4 -3 -3 -3 -2 -2 -2 --------- Run | Yrd Mat Min Sub Scr Fac Was Fac Upp Upp Zhi Pro Fac Was Fac Upp Upp War Pro Res Tes Res Qua Frg Distress Signals 14 | . . . . . . . 2 . . . . 1 . . . . 2 . . 1 1 . 7 Communications Jammed . | . . . . . . . . . . . . . . . . . . . . . . . . Distress Signals . | . . . . . . . . . . . . . . . . . . . . . . . . Times Spotted 679 | . 19 2 19 . 6 4 94 . 7 . 9 65 6 9 . . 29 . 13 25 26 8 338 Peak Tracking Total 16 | . 3 1 6 . 2 5 15 . 5 . 5 11 6 3 . . 9 . 3 9 12 3 16 Tactical Retreats 65 | . 2 . 1 . . . 15 . 2 . 2 10 . . . . 4 . 1 3 3 . 22 ECM-based Alert Blocks 71 | . . . . . . . 31 . 1 . 4 35 . . . . . . . . . . . ID Masks Used 1 | . . . . . . . . . . . . . . . . . . . . . . . 1 IFF Responses 10 | . . . . . . . . . . . . . . . . . . . . . . . 10 Traps | -11 -10 -10 -10 -7 -5 -5 -5 -5 -5 -5 -4 -4 -4 -4 -4 -4 -4 -3 -3 -3 -2 -2 -2 ------- Run | Yrd Mat Min Sub Scr Fac Was Fac Upp Upp Zhi Pro Fac Was Fac Upp Upp War Pro Res Tes Res Qua Frg Traps Triggered 21 | . . . . . 3 . 2 . . . . 2 . 2 . 1 . . . 1 . 1 9 Indirectly . | . . . . . . . . . . . . . . . . . . . . . . . . Trap Hack Attempts . | . . . . . . . . . . . . . . . . . . . . . . . . Triggered . | . . . . . . . . . . . . . . . . . . . . . . . . Disarmed . | . . . . . . . . . . . . . . . . . . . . . . . . Reprogrammed 6 | . . . . . . . . . . . . . . . . . . . . 6 . . . Reused 3 | . . . 1 . . . 2 . . . . . . . . . . . . . . . . Traps Extracted . | . . . . . . . . . . . . . . . . . . . . . . . . Installed 3 | . . . 1 . . . 2 . . . . . . . . . . . . . . . . Triggered 3 | . . . 1 . . . 2 . . . . . . . . . . . . . . . . Most Traps Carried 6 | . . . 1 2 2 2 2 . 6 6 6 6 6 6 . . . . . . . . . Machines | -11 -10 -10 -10 -7 -5 -5 -5 -5 -5 -5 -4 -4 -4 -4 -4 -4 -4 -3 -3 -3 -2 -2 -2 ---------- Run | Yrd Mat Min Sub Scr Fac Was Fac Upp Upp Zhi Pro Fac Was Fac Upp Upp War Pro Res Tes Res Qua Frg Machines Disabled 65 | . . . 1 . 1 . . . . . . 6 . 1 . . 2 . . 29 . 1 24 Max in Single Turn 6 | . . . 1 . 1 . . . . . . 4 . 1 . . 1 . . 6 . 1 1 Garrison Access 5 | . . . . . . . 1 . . . . . . . . . . . 2 . 1 . 1 Machines Repaired . | . . . . . . . . . . . . . . . . . . . . . . . . Machines Dismantled . | . . . . . . . . . . . . . . . . . . . . . . . . Machines Sabotaged . | . . . . . . . . . . . . . . . . . . . . . . . . Overloaded Fab Kills . | . . . . . . . . . . . . . . . . . . . . . . . . Hacking | -11 -10 -10 -10 -7 -5 -5 -5 -5 -5 -5 -4 -4 -4 -4 -4 -4 -4 -3 -3 -3 -2 -2 -2 --------- Run | Yrd Mat Min Sub Scr Fac Was Fac Upp Upp Zhi Pro Fac Was Fac Upp Upp War Pro Res Tes Res Qua Frg Machines Accessed 127 | . 4 . 1 6 11 . 23 4 . 4 . 13 . 11 . 1 1 . 10 10 7 7 14 Terminals 55 | . 2 . . . 6 . 9 1 . . . 3 . 3 . . . . 4 7 4 7 9 Fabricators 10 | . . . . . 1 . 2 . . . . 2 . 1 . . . . . 2 . . 2 Repair Stations 5 | . . . . . . . 3 . . . . 1 . 1 . . . . . . . . . Recycling Units 24 | . 2 . . . 1 . 7 . . . . 4 . 5 . . . . 3 . . . 2 Scanalyzers 10 | . . . . . 2 . 1 . . . . 2 . 1 . . . . 1 1 2 . . Garrison Access 7 | . . . . . 1 . 1 . . . . 1 . . . . . . 2 . 1 . 1 Total Hacks 399 | . 8 . 1 18 29 . 72 10 . 17 . 42 . 28 . 1 1 . 34 57 23 19 39 Successful 239 | . 6 . 1 18 14 . 41 10 . 17 . 24 . 14 . 1 1 . 13 39 15 7 18 Failed 160 | . 2 . . . 15 . 31 . . . . 18 . 14 . . . . 21 18 8 12 21 Catastrophic 26 | . 1 . . . . . 5 . . . . 2 . 1 . . . . 2 4 3 3 5 Database Lockouts . | . . . . . . . . . . . . . . . . . . . . . . . . Manual 152 | . 7 . . . 13 . 29 . . . . 17 . 12 . . 1 . 15 31 8 10 9 Terminals 196 | . 5 . . . 16 . 31 1 . . . 6 . 9 . . . . 21 43 18 19 27 Fabricators 27 | . . . . . 2 . 4 . . . . 5 . 2 . . . . . 8 . . 6 Repair Stations 17 | . . . . . . . 13 . . . . 2 . 2 . . . . . . . . . Recycling Units 60 | . 3 . . . 5 . 12 . . . . 16 . 12 . . . . 8 . . . 4 Scanalyzers 43 | . . . . . 4 . 11 . . . . 12 . 3 . . . . 3 6 4 . . Garrison Access 9 | . . . . . 2 . 1 . . . . 1 . . . . . . 2 . 1 . 2 Terminal Hacks 119 | . . . 1 18 5 . 11 10 . 17 . 1 . 2 . 1 1 . 6 19 9 5 13 Record 28 | . . . . 13 . . . 8 . 5 . . . . . . . . . . . . 2 Part Schematic 6 | . . . . . . . . . . 4 . . . . . . . . . 1 . 1 . Robot Analysis 7 | . . . . 3 . . . . . 4 . . . . . . . . . . . . . Prototype ID Bank 17 | . . . . . 2 . 4 . . 4 . . . . . . . . 1 2 . 2 2 Open Door 6 | . . . . 1 . . . 2 . . . . . . . 1 1 . . . 1 . . Branch Access Points 5 | . . . . . . . 1 . . . . 1 . . . . . . 1 1 1 . . Emergency Access Points 1 | . . . . . . . . . . . . . . . . . . . 1 . . . . Machine Index 2 | . . . . . . . . . . . . . . . . . . . . . 1 1 . Terminal Index 2 | . . . . . . . . . . . . . . 1 . . . . . 1 . . . Fabricator Index 1 | . . . . . . . . . . . . . . . . . . . . 1 . . . Alert Level 2 | . . . . . . . . . . . . . . . . . . . . . 2 . . Unreport Threat 9 | . . . . . . . . . . . . . . . . . . . . 6 1 . 2 Locate Traps 7 | . . . . . 2 . 1 . . . . . . . . . . . 1 1 1 . 1 Reprogram Traps 1 | . . . . . . . . . . . . . . . . . . . . 1 . . . Recall Investigation 3 | . . . . . . . 2 . . . . . . . . . . . . 1 . . . Recall Extermination 2 | . . . . . . . . . . . . . . . . . . . . 1 1 . . Recall Reinforcements 1 | . . . . . . . . . . . . . . . . . . . . . 1 . . Recall Assault 1 | . . . . . . . . . . . . . . . . . . . . 1 . . . Hauler Manifests 2 | . . . . . . . . . . . . . . . . . . . 1 1 . . . Registered Components 3 | . . . . . . . 1 . . . . . . 1 . . . . . . . . 1 Registered Prototypes 2 | . . . . . . . 1 . . . . . . . . . . . . 1 . . . Zone Layout 8 | . . . . . 1 . 1 . . . . . . . . . . . 1 . . 1 4 Proto ID Catalog 3 | . . . 1 1 . . . . . . . . . . . . . . . . . . 1 Fabricator Hacks 12 | . . . . . 1 . 1 . . . . 2 . 1 . . . . . 4 . . 3 Network Status 3 | . . . . . 1 . 1 . . . . 1 . . . . . . . . . . . Load Schematic 5 | . . . . . . . . . . . . 1 . . . . . . . 2 . . 2 Build 4 | . . . . . . . . . . . . . . 1 . . . . . 2 . . 1 Repair Station Hacks 9 | . . . . . . . 6 . . . . 2 . 1 . . . . . . . . . Scan Component 6 | . . . . . . . 4 . . . . 1 . 1 . . . . . . . . . Repair 3 | . . . . . . . 2 . . . . 1 . . . . . . . . . . . Recycling Unit Hacks 4 | . . . . . . . . . . . . 2 . 2 . . . . . . . . . Retrieve Components 4 | . . . . . . . . . . . . 2 . 2 . . . . . . . . . Scanalyzer 31 | . . . . . 4 . 6 . . . . 9 . 2 . . . . 1 6 3 . . Insert Component 11 | . . . . . 2 . 2 . . . . 4 . . . . . . . 2 1 . . Analyze 12 | . . . . . . . 2 . . . . 5 . . . . . . . 4 1 . . Retrieve Study 8 | . . . . . 2 . 2 . . . . . . 2 . . . . 1 . 1 . . Garrison Access Hacks 4 | . . . . . . . 1 . . . . . . . . . . . 2 . 1 . . Seal Access 4 | . . . . . . . 1 . . . . . . . . . . . 2 . 1 . . Unauthorized Hacks 60 | . 6 . . . 4 . 16 . . . . 8 . 6 . . . . 4 10 2 2 2 Terminals 29 | . 4 . . . 3 . 7 . . . . . . . . . . . 1 9 2 2 1 Track 1 | . . . . . . . . . . . . . . . . . . . . . . 1 . Assimilate 2 | . . . . . . . . . . . . . . . . . . . . 1 . . 1 Botnet 9 | . 2 . . . 1 . 2 . . . . . . . . . . . 1 1 1 1 . Operators 1 | . . . . . . . . . . . . . . . . . . . . 1 . . . Skim 16 | . 2 . . . 2 . 5 . . . . . . . . . . . . 6 1 . . Fabricators 3 | . . . . . . . 1 . . . . 1 . . . . . . . 1 . . . Prioritize 1 | . . . . . . . . . . . . . . . . . . . . 1 . . . Haulers 1 | . . . . . . . 1 . . . . . . . . . . . . . . . . Recompile 1 | . . . . . . . . . . . . 1 . . . . . . . . . . . Repair Stations 2 | . . . . . . . 2 . . . . . . . . . . . . . . . . Patch 2 | . . . . . . . 2 . . . . . . . . . . . . . . . . Recycling Units 26 | . 2 . . . 1 . 6 . . . . 7 . 6 . . . . 3 . . . 1 Reject 2 | . . . . . . . . . . . . 1 . 1 . . . . . . . . . Recyclers 1 | . . . . . . . . . . . . 1 . . . . . . . . . . . Mask 2 | . . . . . . . . . . . . 1 . 1 . . . . . . . . . Tunnel 2 | . 2 . . . . . . . . . . . . . . . . . . . . . . Fedlink 19 | . . . . . 1 . 6 . . . . 4 . 4 . . . . 3 . . . 1 Scanalyzers . | . . . . . . . . . . . . . . . . . . . . . . . . Garrison Access . | . . . . . . . . . . . . . . . . . . . . . . . . Data Cores Recovered 7 | . . . . . . . 1 . . . . . . . . . . . 2 . . 2 2 Used 3 | . . . . . . . 1 . . . . . . . . . . . 2 . . . . Hacking Detections 88 | . 3 . . . 11 . 15 . . . . 11 . 9 . . . . 7 9 4 7 12 Full Trace Events 8 | . . . . . . . 3 . . . . . . . . . . . . 2 . . 3 Feedback Events . | . . . . . . . . . . . . . . . . . . . . . . . . Feedback Blocked . | . . . . . . . . . . . . . . . . . . . . . . . . Robot Schematics Acquired 2 | . . . . . . . . . . . . . . . . . . . . . . . 2 Robots Built . | . . . . . . . . . . . . . . . . . . . . . . . . Authchips . | . . . . . . . . . . . . . . . . . . . . . . . . Time . | . . . . . . . . . . . . . . . . . . . . . . . . Total Robot Build Rating . | . . . . . . . . . . . . . . . . . . . . . . . . Part Schematics Acquired 21 | . . . . . . . . . . 4 . 3 . . . . . . . 3 1 1 9 Parts Built 6 | . . . . . . . . . . . . . . 2 . . . . . 3 . . 1 Authchips 1 | . . . . . . . . . . . . . . 1 . . . . . . . . . Time 243 | . . . . . . . . . . . . . . 139 . . . . . 73 . . 31 Total Part Build Rating 45 | . . . . . . . . . . . . . . 18 . . . . . 22 . . 5 Part Studies Acquired 8 | . . . . . 2 . 2 . . . . . . 2 . . . . 1 . 1 . . Parts Repaired 3 | . . . . . . . 2 . . . . 1 . . . . . . . . . . . Time 125 | . . . . . . . 82 . . . . 43 . . . . . . . . . . . Parts Recycled . | . . . . . . . . . . . . . . . . . . . . . . . . Recycled Matter . | . . . . . . . . . . . . . . . . . . . . . . . . Retrieved Matter . | . . . . . . . . . . . . . . . . . . . . . . . . Retrieved Components 10 | . . . . . . . . . . . . 5 . 5 . . . . . . . . . Parts Scanalyzed 7 | . . . . . . . 1 . . . . 3 . . . . . . . 2 1 . . Part Schematics Acquired 6 | . . . . . . . . . . . . 3 . . . . . . . 2 1 . . Parts Damaged 3 | . . . . . . . 1 . . . . 1 . . . . . . . 1 . . . Bothacking | -11 -10 -10 -10 -7 -5 -5 -5 -5 -5 -5 -4 -4 -4 -4 -4 -4 -4 -3 -3 -3 -2 -2 -2 ------------ Run | Yrd Mat Min Sub Scr Fac Was Fac Upp Upp Zhi Pro Fac Was Fac Upp Upp War Pro Res Tes Res Qua Frg Used RIF Installer . | . . . . . . . . . . . . . . . . . . . . . . . . Robots Hacked . | . . . . . . . . . . . . . . . . . . . . . . . . Non-combat . | . . . . . . . . . . . . . . . . . . . . . . . . Combat . | . . . . . . . . . . . . . . . . . . . . . . . . Robot Hacks Applied . | . . . . . . . . . . . . . . . . . . . . . . . . Relay Couplers Released 5 | . . . . . . . . . . . . . . . . . . . . 4 . . 1 Machine Destruction 1 | . . . . . . . . . . . . . . . . . . . . . . . 1 Programmers 4 | . . . . . . . . . . . . . . . . . . . . 4 . . . Fabnet Peak Effective % . | . . . . . . . . . . . . . . . . . . . . . . . . Robots Rewired 5 | . . . . . . . . . . . . . . . . . 5 . . . . . . Allies Hacked . | . . . . . . . . . . . . . . . . . . . . . . . . Hacks Repelled . | . . . . . . . . . . . . . . . . . . . . . . . . Allies | -11 -10 -10 -10 -7 -5 -5 -5 -5 -5 -5 -4 -4 -4 -4 -4 -4 -4 -3 -3 -3 -2 -2 -2 -------- Run | Yrd Mat Min Sub Scr Fac Was Fac Upp Upp Zhi Pro Fac Was Fac Upp Upp War Pro Res Tes Res Qua Frg Total Allies 7 | . . . . . . . . . . . . . . . . . 5 . . 1 . . 1 Largest Group 5 | . . . . . . . . . . . . . . . . . 5 . . 1 . . 1 Highest-Rated Group 301 | . . . . . . . . . . . . . . . . . 301 . . 10 . . 45 Highest-Rated Ally 68 | . . . . . . . . . . . . . . . . . 68 . . 10 . . 45 Total Orders 2 | . . . . . . . . . . . . . . . . . 2 . . . . . . STAY 1 | . . . . . . . . . . . . . . . . . 1 . . . . . . FOLLOW 1 | . . . . . . . . . . . . . . . . . 1 . . . . . . Ally Attacks 25 | . . . . . . . . . . . . . . . . . 25 . . . . . . Total Damage 1195 | . . . . . . . . . . . . . . . . . 1195 . . . . . . Kills 3 | . . . . . . . . . . . . . . . . . 3 . . . . . . Allies Corrupted . | . . . . . . . . . . . . . . . . . . . . . . . . Allies Melted 2 | . . . . . . . . . . . . . . . . . 2 . . . . . . Intel | -11 -10 -10 -10 -7 -5 -5 -5 -5 -5 -5 -4 -4 -4 -4 -4 -4 -4 -3 -3 -3 -2 -2 -2 ------- Run | Yrd Mat Min Sub Scr Fac Was Fac Upp Upp Zhi Pro Fac Was Fac Upp Upp War Pro Res Tes Res Qua Frg Active Infowar (turns) 12517 | 169 207 . 2893 . 612 39 1350 146 236 112 149 688 27 638 204 251 1135 108 442 405 439 312 1955 Optics 5360 | . . . . . . . 357 143 236 112 149 688 27 638 204 251 880 79 380 270 347 163 436 Sensors 4556 | . . . . . 602 39 848 . . . . . . 590 172 230 1109 108 442 316 100 . . Terrain 183 | 166 17 . . . . . . . . . . . . . . . . . . . . . . Seismic 3376 | 169 207 . 2893 . 105 . . . . . . . . . . . . . 2 . . . . T.N.C. 1519 | . . . . . 610 39 867 3 . . . . . . . . . . . . . . . Cloaking 3752 | . . . . . . . . . . . . . . 264 . . 127 108 437 224 325 312 1955 ECM 1051 | . . . . . . . 326 . 19 4 137 432 27 88 1 . . . . 17 . . . ID Mask 20 | . . . . . . . . . . . . . . . . . . . . . . . 20 Robot Analysis Total 7 | . . . . 3 . . . . . 4 . . . . . . . . . . . . . Derelict Logs Recovered 11 | . . . 2 5 . . . 1 . . 2 . . . 1 . . . . . . . . Drone Launches . | . . . . . . . . . . . . . . . . . . . . . . . . Drone Recoveries . | . . . . . . . . . . . . . . . . . . . . . . . . Exploration | -11 -10 -10 -10 -7 -5 -5 -5 -5 -5 -5 -4 -4 -4 -4 -4 -4 -4 -3 -3 -3 -2 -2 -2 ------------- Run | Yrd Mat Min Sub Scr Fac Was Fac Upp Upp Zhi Pro Fac Was Fac Upp Upp War Pro Res Tes Res Qua Frg Turns Passed 19359 | 304 1274 120 3601 4019 621 39 1552 257 236 112 149 688 27 638 204 251 1135 108 442 405 439 335 2403 Spaces Moved 25993 | 138 467 13 1468 1264 1298 93 2616 618 531 213 300 1354 81 1071 349 354 2329 232 1540 1116 1250 940 6358 Core 24 | 5 . . . . . . . . . . . . . 15 . 3 . . . . . . 1 Treads 3290 | 133 467 13 1465 1212 . . . . . . . . . . . . . . . . . . . Legs . | . . . . . . . . . . . . . . . . . . . . . . . . Wheels 55 | . . . 3 52 . . . . . . . . . . . . . . . . . . . Hover . | . . . . . . . . . . . . . . . . . . . . . . . . Flight 22624 | . . . . . 1298 93 2616 618 531 213 300 1354 81 1056 349 351 2329 232 1540 1116 1250 940 6357 Fastest Speed 11 | 50 160 160 130 130 35 35 35 37 37 37 37 26 29 29 40 40 17 17 17 17 11 14 11 Average Speed 53 | 156 220 160 205 312 35 35 36 37 37 37 37 33 29 35 40 42 28 17 18 18 16 14 14 Slowest Speed 850 | 160 240 160 320 320 101 35 37 37 37 80 37 192 29 250 40 300 96 17 95 19 84 15 850 Overloaded Moves 43 | . . . . . . . . . . . . 32 . . . . . . . . 11 . . Propulsion Burnouts . | . . . . . . . . . . . . . . . . . . . . . . . . Robots Hopped 87 | . . . . . . . 23 . . . . 10 2 5 . . 2 . 2 6 2 6 29 Potential Cave-ins 10 | . . . . . . . . . . . . . . . . . 1 . . . 2 . 7 Cave-ins Triggered . | . . . . . . . . . . . . . . . . . . . . . . . . Teleports 6 | . . . . . . . . . . . . . . . . . . . . . . . 6 Exploration Rate (%) 57 | 6 56 6 75 89 30 69 55 73 80 63 57 32 79 25 56 49 95 39 48 93 41 84 83 Regions Visited 23 Branch Regions 14 Pre-discovered Areas 12 | . 2 . 2 3 . . 1 . . 3 . . . . 1 . . . . . . . . Known Exits Taken 12 | . . . . . . . 1 1 1 . 1 . . 1 1 1 1 1 1 1 1 . . Unknown Exits Taken 7 | 1 1 1 1 1 . . . . . 1 . . . . . . . . . . . 1 . Scrap Searched 23 | . . . 8 5 . . . 2 3 . 1 . . . 1 2 . 1 . . . . . Spaces Dug 227 | . 4 13 1 . 6 . 29 2 1 . 41 17 . 10 2 6 2 3 19 13 24 10 24 Terrain Destroyed 709 | . 5 27 6 . 11 . 41 4 2 . 43 50 . 10 5 10 3 4 20 94 37 11 326 Melee 154 | . . . . . 6 . 29 1 1 . 4 17 . 10 2 6 2 3 19 12 24 10 8 Projectile 70 | . 5 . 2 . 5 . 12 3 1 . 2 5 . . 3 4 1 1 1 4 13 1 7 AOE 471 | . . 27 4 . . . . . . . 37 28 . . . . . . . 77 . . 298 Terrain Rammed . | . . . . . . . . . . . . . . . . . . . . . . . . Walls Destroyed . | . . . . . . . . . . . . . . . . . . . . . . . . Machines Disabled . | . . . . . . . . . . . . . . . . . . . . . . . . Actions | -11 -10 -10 -10 -7 -5 -5 -5 -5 -5 -5 -4 -4 -4 -4 -4 -4 -4 -3 -3 -3 -2 -2 -2 --------- Run | Yrd Mat Min Sub Scr Fac Was Fac Upp Upp Zhi Pro Fac Was Fac Upp Upp War Pro Res Tes Res Qua Frg Total 30053 | 175 614 100 1824 1344 1426 99 3051 637 560 241 324 1497 81 1238 405 436 2774 294 1640 1245 1434 1138 7476 Wait 1609 | . 76 78 179 39 56 5 172 . 5 2 10 14 . 55 42 65 290 57 16 43 41 116 248 Move 25807 | 137 466 12 1467 1263 1298 92 2570 617 530 212 299 1335 77 1060 348 353 2324 231 1536 1103 1246 927 6304 Hop 76 | . . . . . . . 22 . . . . 9 1 5 . . 2 . 1 6 1 6 23 Pick Up 188 | 4 10 . 22 17 8 1 9 3 3 3 . 9 1 5 1 . 14 . 4 6 6 5 57 Fast Attach 145 | 7 2 . 1 2 6 . 9 1 . 7 . 5 . 6 2 . 24 . 12 9 9 3 40 Attach 102 | . . . 4 . 9 . 10 2 1 1 2 8 2 5 3 2 11 1 3 3 10 3 22 Detach 105 | . 1 . . . 3 . 11 4 1 2 2 7 . 6 2 2 14 1 5 4 9 3 28 Swap 267 | . 9 2 32 3 2 . 34 . 5 6 . 12 . 5 . . 23 . 3 12 15 6 98 Drop 247 | . 3 . 14 20 14 1 12 2 3 7 . 10 . 6 1 . 30 . 11 12 11 8 82 Fire 535 | 27 44 8 104 . 5 . 12 3 1 . 4 10 . . 3 4 10 1 1 8 13 1 276 Melee 741 | . . . . . 25 . 173 5 11 1 7 78 . 70 3 10 6 3 48 39 73 45 144 Ram . | . . . . . . . . . . . . . . . . . . . . . . . . Kick . | . . . . . . . . . . . . . . . . . . . . . . . . Crush 3 | . 3 . . . . . . . . . . . . . . . . . . . . . . Escape Stasis 128 | . . . . . . . 15 . . . . . . 15 . . . . . . . 15 83 Rewire 26 | . . . . . . . . . . . . . . . . . 26 . . . . . . Trap 3 | . . . 1 . . . 2 . . . . . . . . . . . . . . . . Miscellaneous 71 | . . . . . . . . . . . . . . . . . . . . . . . 71 Route ------- -11/Scrapyard -10/Materials (discovered 4 exits: [*Mat x2] / [*Min x2]) -10/Mines -10/Subcaves (discovered 3 exits: [*Mat x2] / *Scr) -7/Scraptown (discovered 2 exits: *Fac x2) -5/Factory (discovered 3 exits: *Fac x2 / *Upp) -5/Waste -5/Factory (discovered 4 exits: *Fac x2 / *Upp x2) -5/Upper Caves -5/Upper Caves (discovered 2 exits: *Fac / *Zhi) -5/Zhirov -4/Proximity Caves -4/Factory (discovered 4 exits: *Res x2 / Upp x2) -4/Waste -4/Factory -4/Upper Caves -4/Upper Caves (discovered 2 exits: *Res / *War) -4/Warlord -3/Proximity Caves -3/Research (discovered 5 exits: *Res x2 / Arm / *Tes x2) -3/Testing -2/Research (discovered 2 exits: *Qua x2) -2/Quarantine (discovered 3 exits: [*Acc] / [*Sec] / *Frg) -2/Protoforge 0bPrime History --------- Turn | Location | Event 15 | -11/Scrapyard | Discovered new exit (range 15) 305 | -11/Scrapyard | Entered Materials 306 | -10/Materials | Build established: Mutant 1040 | -10/Materials | Discovered new exit (range 9) 1072 | -10/Materials | Discovered new exit (range 14) 1285 | -10/Materials | Discovered new exit (range 16) 1360 | -10/Materials | Discovered new exit (range 12) 1579 | -10/Materials | Entered Mines 1580 | -10/Mines | Assembled infested the area 1585 | -10/Mines | Assisted by a Guerilla fighting off Assembled 1615 | -10/Mines | Discovered new exit (range 5) 1699 | -10/Mines | Entered Subcaves 1700 | -10/Subcaves | Approached by a straggling Scientist 1923 | -10/Subcaves | A swath of the cavern ceiling suddenly collapsed 1977 | -10/Subcaves | Disturbed a concealed Subdweller 2898 | -10/Subcaves | Shifting Twisted Machinery released Battle Cannon 2906 | -10/Subcaves | Shifting Twisted Machinery released Barrage Gun 3010 | -10/Subcaves | Visited 4L-MR0's lab 3034 | -10/Subcaves | Found Flightbrick 3164 | -10/Subcaves | Discovered new exit (range 10) 3177 | -10/Subcaves | Shifting Twisted Machinery released Mak. Flight Unit 3187 | -10/Subcaves | Shifting Twisted Machinery released Barrage Gun 3221 | -10/Subcaves | Build established: Scavenger-Mutant 3251 | -10/Subcaves | Core integrity fell below 50% 3277 | -10/Subcaves | Learned location of Zion (-6) 3537 | -10/Subcaves | Build established: Mutant 4202 | -10/Subcaves | Scientist uncovered a shortcut to Scraptown 4331 | -10/Subcaves | Discovered new exit (range 11) 4682 | -10/Subcaves | Shifting Twisted Machinery released Sub. Laser 4735 | -10/Subcaves | Shifting Twisted Machinery released Mak. Light Armor Plating 4988 | -10/Subcaves | Build established: Scavenger-Mutant 5202 | -10/Subcaves | Ambushed by angry Subdweller bent on revenge 5240 | -10/Subcaves | Core integrity fell below 20% 5300 | -10/Subcaves | Entered Scraptown 5352 | -7/Scraptown | Heard Great Nut preacher, LISTEN AND RECITE! 5545 | -7/Scraptown | Build established: Mutant 5706 | -7/Scraptown | Visited UFD Registry 5706 | -7/Scraptown | Registered with UFD as "Nukemech" 5750 | -7/Scraptown | Visited Shadow of the Wyrm 5808 | -7/Scraptown | Visited Fellowship of the Rings 5920 | -7/Scraptown | Scanned Subdweller tech in exchange for log data 5926 | -7/Scraptown | Learned Research stockpile data 5930 | -7/Scraptown | Learned Research emergency access door positions 5936 | -7/Scraptown | Learned location of Armory (-3) 5939 | -7/Scraptown | Learned Research security intel 5978 | -7/Scraptown | Discovered new exit (range 11) 6598 | -7/Scraptown | Visited Cave Peace 6630 | -7/Scraptown | Visited Bundlers 6884 | -7/Scraptown | Visited SPCMW 6958 | -7/Scraptown | Visited Symbiants 7063 | -7/Scraptown | Visited Assassins FH 7956 | -7/Scraptown | Visited Derelict Rescue Squad 7982 | -7/Scraptown | Found DRS Beacon 8044 | -7/Scraptown | Visited Curators Association 8150 | -7/Scraptown | Visited Sword Containment 8296 | -7/Scraptown | Delivered Scrap Shield to a Scientist 8540 | -7/Scraptown | Visited Scrapoid Research Area 8588 | -7/Scraptown | Visited Scrapoid Pod Storage 8636 | -7/Scraptown | Visited Analyses Database 8691 | -7/Scraptown | Visited Science Guys 8876 | -7/Scraptown | Visited Scrap Suit Storage 8934 | -7/Scraptown | Visited Modified Component R&D 9254 | -7/Scraptown | Met Optimus 9254 | -7/Scraptown | Accepted into 0bPrime 9316 | -7/Scraptown | Discovered new exit (range 3) 9319 | -7/Scraptown | Entered Factory 9319 | -5/Factory | Evolved 10 slots: Propulsion x4, Utility x6 9325 | -5/Factory | Attached Flightbrick, gained temporary slots: Utility x3 9614 | -5/Factory | Loaded intel: 8 recycling unit locations 9708 | -5/Factory | Discovered new exit (range 8) 9760 | -5/Factory | Discovered new exit (range 11) 9763 | -5/Factory | Identified exit to Upper Caves 9852 | -5/Factory | Build established: Scout 9891 | -5/Factory | Discovered new exit (range 11) 9940 | -5/Factory | Sucked down chute 9940 | -5/Factory | Entered Waste 9949 | -5/Waste | Spotted C-40 Crusher 9950 | -5/Waste | Spotted C-40 Crusher 9962 | -5/Waste | Spotted C-40 Crusher 9968 | -5/Waste | Spotted C-40 Crusher 9973 | -5/Waste | Spotted C-40 Crusher 9975 | -5/Waste | Spotted C-40 Crusher 9976 | -5/Waste | Discovered new exit (range 10) 9979 | -5/Waste | Identified exit to Factory 9979 | -5/Waste | Entered Factory 10289 | -5/Factory | Loaded intel: 8 recycling unit locations 10289 | -5/Factory | Learned location of Protoforge (-2) 10296 | -5/Factory | Found Imp. Powered Armor 10640 | -5/Factory | Learned Armory stockpile data 10678 | -5/Factory | Repaired Broken Imp. Powered Armor 10685 | -5/Factory | Learned Research interactive machine intel 10718 | -5/Factory | Learned Armory trap positions 10739 | -5/Factory | Learned 4 Research zone layouts 10748 | -5/Factory | Identified exit to Factory 10749 | -5/Factory | Learned location of 1 exit from Armory 10750 | -5/Factory | Learned Research emergency access door positions 10761 | -5/Factory | Learned 12 Research zone layouts 10779 | -5/Factory | Learned Research trap positions 10794 | -5/Factory | Destroyed 7 combat bots 10915 | -5/Factory | Destroyed 9 combat bots 10943 | -5/Factory | Repaired Broken Nanoactuators 11166 | -5/Factory | Build established: Hacker-Mutant 11308 | -5/Factory | Cargo convoy interrupted 11501 | -5/Factory | Build established: Mutant 11531 | -5/Factory | Entered Upper Caves 11533 | -5/Upper Caves | UFD Scientist delivered a prototype 11534 | -5/Upper Caves | Found Prototype Protection 11534 | -5/Upper Caves | Identified Enh. Scrap Shield 11540 | -5/Upper Caves | Learned location of 1 exit from Factory 11621 | -5/Upper Caves | Entered an active Warlord outpost 11625 | -5/Upper Caves | Learned Armory terminal intel 11625 | -5/Upper Caves | Learned Armory security intel 11625 | -5/Upper Caves | Learned Extension emergency access door positions 11625 | -5/Upper Caves | Learned Research emergency access door positions 11634 | -5/Upper Caves | Destroyed M4-LR8(g) 11664 | -5/Upper Caves | Discovered new exit (range 18) 11670 | -5/Upper Caves | Identified exit to Upper Caves 11788 | -5/Upper Caves | Entered another Upper Caves area 11845 | -5/Upper Caves | Spotted B-75 Beast 11866 | -5/Upper Caves | Encountered a Warlord checkpoint 12009 | -5/Upper Caves | Discovered new exit (range 5) 12011 | -5/Upper Caves | Identified exit to Zhirov 12024 | -5/Upper Caves | Entered Zhirov 12024 | -5/Zhirov | Discovered new exit (range 3) 12031 | -5/Zhirov | Met Zhirov 12038 | -5/Zhirov | Learned location of Quarantine (-2) 12038 | -5/Zhirov | Learned location of Command (-1) 12044 | -5/Zhirov | Zhirov requested help retrieving the SGEMP Prototype 12050 | -5/Zhirov | Found Alien Artifact 12050 | -5/Zhirov | Identified Integrated Dissipator 12050 | -5/Zhirov | Installed Integrated Dissipator, increased core heat dissipation (+20) 12073 | -5/Zhirov | Found Alien Artifact 12136 | -5/Zhirov | Entered Proximity Caves 12149 | -4/Proximity Caves | Spotted B-86 Titan 12271 | -4/Proximity Caves | Learned Research trap positions 12285 | -4/Proximity Caves | Entered Factory 12285 | -4/Factory | Evolved 2 slots: Power x1, Propulsion x1 12286 | -4/Factory | Identified exit to Research 12331 | -4/Factory | Loaded intel: 8 recycling unit locations 12378 | -4/Factory | Identified Transdimensional Reconstructor 12652 | -4/Factory | Garrison activated, responded to threat 12669 | -4/Factory | Discovered exit to Research (range 10) 12765 | -4/Factory | Identified exit to Upper Caves 12921 | -4/Factory | Repaired Broken Nanoactuators? 12973 | -4/Factory | Sucked down chute 12973 | -4/Factory | Entered Waste 12981 | -4/Waste | Spotted C-40 Crusher 12984 | -4/Waste | Spotted C-40 Crusher 12985 | -4/Waste | Spotted C-40 Crusher 12988 | -4/Waste | EMP discharged 12988 | -4/Waste | System corruption reached 10% 12988 | -4/Waste | Spotted C-40 Crusher 12988 | -4/Waste | Spotted C-40 Crusher 12989 | -4/Waste | Spotted C-40 Crusher 12993 | -4/Waste | Lost 4 parts (2n1u1w) 12994 | -4/Waste | Discovered new exit (range 22) 13000 | -4/Waste | Entered Factory 13216 | -4/Factory | Lost 3 parts (1p1n1u) 13229 | -4/Factory | Fabricated Adv. Cloaking Device? 13271 | -4/Factory | Loaded intel: 8 recycling unit locations 13500 | -4/Factory | Core integrity fell below 50% 13634 | -4/Factory | Discovered exit to Upper Caves (range 5) 13638 | -4/Factory | Entered Upper Caves 13774 | -4/Upper Caves | Entered a destroyed Warlord outpost 13794 | -4/Upper Caves | Found Alien Artifact 13794 | -4/Upper Caves | Identified Core Expander 13794 | -4/Upper Caves | Installed Core Expander, added new Propulsion slot 13801 | -4/Upper Caves | Discovered new exit (range 7) 13802 | -4/Upper Caves | Identified exit to Upper Caves 13842 | -4/Upper Caves | Entered another Upper Caves area 13846 | -4/Upper Caves | Discovered exit to Research (range 11) 14033 | -4/Upper Caves | Discovered new exit (range 9) 14037 | -4/Upper Caves | Identified exit to Warlord 14042 | -4/Upper Caves | Encountered a Warlord checkpoint 14093 | -4/Upper Caves | Entered Warlord 14094 | -4/Warlord | Forged Quantum Companion 14107 | -4/Warlord | System corruption cleaned by Quarantine Array 14198 | -4/Warlord | Received a Watcher feed algorithm from an ecstatic Tinkerer 14361 | -4/Warlord | Visited the Vortex Lab 14362 | -4/Warlord | Found Prototype Energy Gun 14362 | -4/Warlord | Identified Vortex Rail 14377 | -4/Warlord | Warlord's base attacked by MAIN.C 14411 | -4/Warlord | Found Prototype Device 14411 | -4/Warlord | Identified Exp. Phase Shifter 14414 | -4/Warlord | Found Prototype Device 14414 | -4/Warlord | Identified Thermal Barrier 14417 | -4/Warlord | Found Prototype Hackware 14417 | -4/Warlord | Identified Ghost Barrier 14437 | -4/Warlord | Found Prototype Reactor 14471 | -4/Warlord | Rebuked by Warlord 14477 | -4/Warlord | Attached CPS modules to LV-01A. 14691 | -4/Warlord | Build established: Hacker-Scout 14727 | -4/Warlord | Warlord forces counterattacked 14845 | -4/Warlord | Found Prototype Energy Gun 14845 | -4/Warlord | Identified Vortex Shotgun 14849 | -4/Warlord | Found Vortex Shotgun 14915 | -4/Warlord | Spotted Striker 14918 | -4/Warlord | Destroyed Striker 14925 | -4/Warlord | Found Prototype Processor 14925 | -4/Warlord | Identified Exp. Core Analyzer 14986 | -4/Warlord | Lost 10 allies 15000 | -4/Warlord | Found Prototype Launcher 15000 | -4/Warlord | Identified Exp. Neutron Missile Launcher 15003 | -4/Warlord | Found Prototype Device 15003 | -4/Warlord | Identified Exp. Focal Shield 15033 | -4/Warlord | Spotted B-86 Titan 15052 | -4/Warlord | Warlord base infiltrated, sounded retreat 15084 | -4/Warlord | Attached CPS modules to Enhanced Demolisher. 15086 | -4/Warlord | Spotted B-90 Cyclops 15122 | -4/Warlord | Spotted Striker 15132 | -4/Warlord | Spotted Striker 15160 | -4/Warlord | Spotted Executioner 15210 | -4/Warlord | Spotted Striker 15210 | -4/Warlord | Found Prototype Device 15210 | -4/Warlord | Identified Adv. Kinecellerator 15214 | -4/Warlord | Found Prototype Processor 15214 | -4/Warlord | Identified Spectral Analyzer 15226 | -4/Warlord | Discovered new exit (range 14) 15228 | -4/Warlord | Identified exit to Proximity Caves 15228 | -4/Warlord | Entered Proximity Caves 15241 | -3/Proximity Caves | Build established: Scavenger-Ninja 15253 | -3/Proximity Caves | Lost 4 allies 15334 | -3/Proximity Caves | Discovered exit to Research (range 10) 15336 | -3/Proximity Caves | Entered Research 15336 | -3/Research | Evolved 2 slots: Utility x2 15337 | -3/Research | Identified exit to Armory 15337 | -3/Research | Identified exit to Testing 15338 | -3/Research | Loaded intel: 78 trap records 15342 | -3/Research | Loaded intel: 45 interactive machine locations 15357 | -3/Research | Discovered new exit (range 23) 15395 | -3/Research | Discovered exit to Testing (range 13) 15468 | -3/Research | Spotted B-86 Titan 15621 | -3/Research | Build established: Hacker-Ninja 15633 | -3/Research | Spotted B-86 Titan 15658 | -3/Research | Discovered new exit (range 8) 15659 | -3/Research | Identified exit to Research 15670 | -3/Research | Found Prototype Processor 15670 | -3/Research | Identified Exp. Terrain Scan Processor 15717 | -3/Research | Loaded intel: 5 recycling unit locations 15744 | -3/Research | Spotted B-86 Titan 15778 | -3/Research | Entered Testing 15786 | -3/Testing | Found Prototype Energy Cannon 15786 | -3/Testing | Identified Cld. Nova Cannon 15795 | -3/Testing | Found Prototype Ballistic Gun 15795 | -3/Testing | Identified Hyp. Multirail 15817 | -3/Testing | Found Prototype Device 15817 | -3/Testing | Identified Exp. Hardlight Generator 15888 | -3/Testing | Spotted Alpha 7 15902 | -3/Testing | Discovered exit to Research (range 13) 15908 | -3/Testing | Found Prototype Launcher 15908 | -3/Testing | Identified Z-bomb Delivery System 15932 | -3/Testing | Found Prototype Hackware 15932 | -3/Testing | Identified System Mapper 15938 | -3/Testing | Spotted PD-N2F8IFLBMF 15955 | -3/Testing | Identified Vortex Chain Reactor 16004 | -3/Testing | Spotted Striker 16004 | -3/Testing | Spotted Striker 16019 | -3/Testing | Fabricated Nanoactuators? 16028 | -3/Testing | First assault squad dispatched 16118 | -3/Testing | Fabricated Cld. Impulse Thruster? 16124 | -3/Testing | Learned 4 Research zone layouts 16130 | -3/Testing | Unchained authorized (6S-H0T) 16183 | -3/Testing | Entered Research 16183 | -2/Research | Evolved 2 slots: Utility x2 16184 | -2/Research | Identified exit to Quarantine 16186 | -2/Research | Loaded intel: 54 trap records 16206 | -2/Research | Spotted B-90 Cyclops 16212 | -2/Research | Spotted B-90 Cyclops 16355 | -2/Research | Found Prototype Protection 16355 | -2/Research | Identified Centrium Heavy Armor Plating 16388 | -2/Research | Unchained authorized (6S-H0T) 16561 | -2/Research | Build established: Hacker-Sprinter 16622 | -2/Research | Entered Quarantine 16629 | -2/Quarantine | Found Alien Artifact 16631 | -2/Quarantine | Identified Subatomic Replicator 16631 | -2/Quarantine | Forged Prototype Slashing Weapon 16773 | -2/Quarantine | Found Prototype Device 16773 | -2/Quarantine | Identified Exp. Thermal Defense Suite 16796 | -2/Quarantine | Unchained authorized (6S-H0T) 16869 | -2/Quarantine | Destroyed 6S-H0T 16871 | -2/Quarantine | Found ID Mask 16884 | -2/Quarantine | Discovered new exit (range 15) 16938 | -2/Quarantine | Spotted Fortress 16947 | -2/Quarantine | Discovered new exit (range 6) 16947 | -2/Quarantine | Discovered new exit (range 6) 16957 | -2/Quarantine | Entered Protoforge 16962 | -2/Protoforge | Superfortress began startup sequence 17005 | -2/Protoforge | Spotted Hotshot 17016 | -2/Protoforge | Spotted Hotshot 17084 | -2/Protoforge | Spotted SKR-2 17084 | -2/Protoforge | Spotted SKR-2 17085 | -2/Protoforge | Spotted SKR-2 17098 | -2/Protoforge | UFD initiated attack on Protoforge 17098 | -2/Protoforge | Loaded intel: 3 recycling unit locations 17118 | -2/Protoforge | Found Prototype Processor 17118 | -2/Protoforge | Identified Exp. Melee Analysis Suite 17121 | -2/Protoforge | Found Exp. Melee Analysis Suite 17134 | -2/Protoforge | Optimus greeted in Protoforge 17134 | -2/Protoforge | Spotted EXE-6 17134 | -2/Protoforge | Spotted EXE-6 17135 | -2/Protoforge | Destroyed EXE-6 17137 | -2/Protoforge | Found Prototype Processor 17137 | -2/Protoforge | Identified Exp. Armor Integrity Analyzer 17177 | -2/Protoforge | Fabricated Tactical Coordination Suite (x1) 17214 | -2/Protoforge | Spotted EXE-6 17214 | -2/Protoforge | Spotted EXE-6 17218 | -2/Protoforge | Found Prototype Device 17218 | -2/Protoforge | Identified Exp. Kinecellerator 17294 | -2/Protoforge | Spotted Hotshot 17300 | -2/Protoforge | Spotted Hotshot 17301 | -2/Protoforge | Destroyed Hotshot 17303 | -2/Protoforge | Destroyed Hotshot 17313 | -2/Protoforge | Spotted Executioner 17318 | -2/Protoforge | Spotted Executioner 17327 | -2/Protoforge | Spotted Executioner 17327 | -2/Protoforge | Spotted Executioner 17339 | -2/Protoforge | Found UFD Drillbomb 17347 | -2/Protoforge | Destroyed 12 combat bots 17356 | -2/Protoforge | UFD reported confirmed Drillbomb installation 17388 | -2/Protoforge | Spotted Executioner 17395 | -2/Protoforge | Lost 9 allies 17401 | -2/Protoforge | Spotted Executioner 17402 | -2/Protoforge | Spotted Striker 17404 | -2/Protoforge | Spotted Executioner 17414 | -2/Protoforge | Build established: Scavenger-Sprinter 17416 | -2/Protoforge | Destroyed Striker 17425 | -2/Protoforge | Destroyed Executioner 17425 | -2/Protoforge | Destroyed Executioner 17435 | -2/Protoforge | Spotted Striker 17443 | -2/Protoforge | Lost 6 allies 17443 | -2/Protoforge | Destroyed Striker 17446 | -2/Protoforge | Destroyed Executioner 17465 | -2/Protoforge | Found Exp. Core Analyzer 17467 | -2/Protoforge | Spotted Striker 17476 | -2/Protoforge | Spotted Overlord 17481 | -2/Protoforge | Destroyed 17 combat bots 17486 | -2/Protoforge | Lost 4 allies 17493 | -2/Protoforge | Spotted Striker 17493 | -2/Protoforge | Spotted Striker 17500 | -2/Protoforge | Destroyed Striker 17500 | -2/Protoforge | Spotted Executioner 17502 | -2/Protoforge | Destroyed Striker 17503 | -2/Protoforge | Spotted Executioner 17504 | -2/Protoforge | Destroyed Executioner 17524 | -2/Protoforge | Spotted Executioner 17526 | -2/Protoforge | Spotted Striker 17531 | -2/Protoforge | Destroyed Striker 17541 | -2/Protoforge | Discovered new exit (range 8) 17546 | -2/Protoforge | Destroyed Executioner 17550 | -2/Protoforge | Spotted Striker 17567 | -2/Protoforge | Destroyed 17 combat bots 17584 | -2/Protoforge | Destroyed Overlord 17587 | -2/Protoforge | Spotted Executioner 17591 | -2/Protoforge | Spotted Executioner 17607 | -2/Protoforge | Destroyed Executioner 17609 | -2/Protoforge | Spotted Hotshot 17609 | -2/Protoforge | Spotted Striker 17609 | -2/Protoforge | Spotted Executioner 17624 | -2/Protoforge | ID Mask engaged 17628 | -2/Protoforge | Destroyed 15 combat bots 17629 | -2/Protoforge | Lost 7 allies 17643 | -2/Protoforge | Spotted Immortal 17644 | -2/Protoforge | Spotted Decapitator 17644 | -2/Protoforge | Spotted Decapitator 17644 | -2/Protoforge | Spotted Decapitator 17644 | -2/Protoforge | ID Mask no longer valid 17646 | -2/Protoforge | Destroyed Decapitator 17647 | -2/Protoforge | Destroyed Decapitator 17648 | -2/Protoforge | Destroyed Decapitator 17666 | -2/Protoforge | Found Prototype Protection 17666 | -2/Protoforge | Identified Cep. RG22 Armor 17681 | -2/Protoforge | Found Prototype Processor 17681 | -2/Protoforge | Identified Exp. Target Analyzer 17689 | -2/Protoforge | Found Centrium Heavy Armor Plating 17693 | -2/Protoforge | Spotted Immortal 17698 | -2/Protoforge | Found Cep. Deflector Sword 17708 | -2/Protoforge | UFD reported confirmed Drillbomb installation 17715 | -2/Protoforge | Destroyed Immortal 17735 | -2/Protoforge | Destroyed Immortal 17737 | -2/Protoforge | Found Exp. Cloaking Device 17741 | -2/Protoforge | Found Prototype Device 17741 | -2/Protoforge | Identified Cep. Antimissile System 17753 | -2/Protoforge | Spotted Hotshot 17754 | -2/Protoforge | Destroyed Hotshot 17756 | -2/Protoforge | Spotted Hotshot 17759 | -2/Protoforge | Destroyed Hotshot 17760 | -2/Protoforge | Spotted Hotshot 17765 | -2/Protoforge | Spotted Hotshot 17768 | -2/Protoforge | Destroyed Hotshot 17768 | -2/Protoforge | Destroyed Hotshot 17789 | -2/Protoforge | Destroyed 7 combat bots 17790 | -2/Protoforge | UFD reported confirmed Drillbomb installation 17811 | -2/Protoforge | Spotted Decapitator 17817 | -2/Protoforge | Spotted Decapitator 17818 | -2/Protoforge | Spotted Decapitator 17821 | -2/Protoforge | Destroyed Decapitator 17822 | -2/Protoforge | Destroyed Decapitator 17823 | -2/Protoforge | Destroyed Decapitator 17833 | -2/Protoforge | Found Cep. Melee Reflex Suite 17838 | -2/Protoforge | Found Cep. Weapon Articulator 17866 | -2/Protoforge | Spotted V025-q 17867 | -2/Protoforge | Spotted V898-v 17879 | -2/Protoforge | Found Cep. Antigrav Storage Unit 17885 | -2/Protoforge | Spotted Decapitator 17885 | -2/Protoforge | Spotted Decapitator 17888 | -2/Protoforge | Destroyed Decapitator 17898 | -2/Protoforge | Destroyed Decapitator 17904 | -2/Protoforge | Found Cep. Fieldthrust Drive 17907 | -2/Protoforge | Found Cep. Fieldthrust Drive 17909 | -2/Protoforge | Found Cep. Fieldthrust Drive 17923 | -2/Protoforge | Found Prototype Processor 17923 | -2/Protoforge | Identified Exp. Targeting Computer 17927 | -2/Protoforge | Spotted V747-x 17932 | -2/Protoforge | Destroyed V747-x 17937 | -2/Protoforge | Found Prototype Protection 17937 | -2/Protoforge | Identified Med. Regenerative Plating 17947 | -2/Protoforge | Spotted V012-f 17948 | -2/Protoforge | Spotted V762-y 17952 | -2/Protoforge | Destroyed V012-f 17954 | -2/Protoforge | Destroyed V762-y 17962 | -2/Protoforge | Found Prototype Hover Unit 17964 | -2/Protoforge | Spotted V808-p 17965 | -2/Protoforge | Found Prototype Device 17967 | -2/Protoforge | Found Cep. RG22 Armor 17982 | -2/Protoforge | Destroyed V808-p 17985 | -2/Protoforge | Found Prototype Device 17985 | -2/Protoforge | Identified Exp. Shock Absorption System 17989 | -2/Protoforge | Found Med. Regenerative Plating 17994 | -2/Protoforge | Found Med. Regenerative Plating 17996 | -2/Protoforge | Found Prototype Storage 17996 | -2/Protoforge | Identified Cep. Chromion Battery 17999 | -2/Protoforge | Found Imp. Powered Armor 18004 | -2/Protoforge | Found Prototype Hover Unit 18005 | -2/Protoforge | Found Prototype Hover Unit 18007 | -2/Protoforge | Identified Cep. Gyrokinetic System (x3) 18015 | -2/Protoforge | Found Cep. Gyrokinetic System 18019 | -2/Protoforge | Found Prototype Hover Unit 18020 | -2/Protoforge | Identified Cep. Combat Aerolev Unit 18029 | -2/Protoforge | Found Cep. Plasma Driver 18038 | -2/Protoforge | Spotted Immortal 18038 | -2/Protoforge | Spotted Immortal 18040 | -2/Protoforge | Identified Exp. Shield Generator 18080 | -2/Protoforge | Destroyed Immortal 18100 | -2/Protoforge | Destroyed Immortal 18104 | -2/Protoforge | Found Exp. Cloaking Device 18116 | -2/Protoforge | Spotted V881-o 18118 | -2/Protoforge | Found Faulty Cep. Zero-point Core 18119 | -2/Protoforge | Found Faulty Cep. Zero-point Core 18168 | -2/Protoforge | Found Cep. Tiamat Rocket Array 18172 | -2/Protoforge | Found Cep. EMP Blanket Launcher 18180 | -2/Protoforge | Found Cep. Tactical Fusion Warhead 18211 | -2/Protoforge | Additional patrols dispatched to research labs 18215 | -2/Protoforge | Found Transdimensional Reconstructor 18222 | -2/Protoforge | Found Cep. Navigation Harness 18275 | -2/Protoforge | Found Prototype Device 18276 | -2/Protoforge | Identified Crosscalibrator 18306 | -2/Protoforge | Spotted Striker 18306 | -2/Protoforge | Spotted Executioner 18313 | -2/Protoforge | Spotted Executioner 18313 | -2/Protoforge | Spotted Executioner 18313 | -2/Protoforge | Spotted Striker 18419 | -2/Protoforge | Spotted Executioner 18419 | -2/Protoforge | Spotted Striker 18422 | -2/Protoforge | Spotted Striker 18424 | -2/Protoforge | Spotted Executioner 18428 | -2/Protoforge | P-80 Master assimilated allied OS-26S(j) 18435 | -2/Protoforge | Destroyed Executioner 18435 | -2/Protoforge | P-80 Master assimilated allied R5-4Y6(E) 18443 | -2/Protoforge | Destroyed Executioner 18449 | -2/Protoforge | Spotted Striker 18452 | -2/Protoforge | Destroyed Striker 18456 | -2/Protoforge | Destroyed Striker 18459 | -2/Protoforge | Found UFD Drillbomb 18469 | -2/Protoforge | Lost 7 allies 18476 | -2/Protoforge | Destroyed Striker 18478 | -2/Protoforge | Spotted Striker 18488 | -2/Protoforge | Destroyed Striker 18488 | -2/Protoforge | P-80 Master assimilated allied 02FBI-D 18517 | -2/Protoforge | Destroyed 24 combat bots 18523 | -2/Protoforge | Installed UFD Drillbomb at designated target 18523 | -2/Protoforge | UFD reported confirmed Drillbomb installation 18531 | -2/Protoforge | Spotted Executioner 18534 | -2/Protoforge | Spotted Executioner 18542 | -2/Protoforge | Spotted Striker 18550 | -2/Protoforge | Destroyed Striker 18576 | -2/Protoforge | Found UFD Drillbomb 18578 | -2/Protoforge | Spotted Striker 18579 | -2/Protoforge | Spotted Striker 18579 | -2/Protoforge | Destroyed Executioner 18601 | -2/Protoforge | Spotted Striker 18601 | -2/Protoforge | Destroyed Striker 18607 | -2/Protoforge | Found Exp. Core Analyzer 18614 | -2/Protoforge | Lost 8 allies 18617 | -2/Protoforge | Spotted Hotshot 18622 | -2/Protoforge | Destroyed 16 combat bots 18625 | -2/Protoforge | Destroyed Hotshot 18631 | -2/Protoforge | Destroyed Hotshot 18649 | -2/Protoforge | Installed UFD Drillbomb at designated target 18649 | -2/Protoforge | UFD reported confirmed Drillbomb installation 18657 | -2/Protoforge | Spotted Executioner 18666 | -2/Protoforge | Spotted Executioner 18666 | -2/Protoforge | Destroyed Executioner 18702 | -2/Protoforge | Lost 3 allies 18703 | -2/Protoforge | Destroyed Executioner 18735 | -2/Protoforge | Spotted Executioner 18752 | -2/Protoforge | Destroyed 10 combat bots 18752 | -2/Protoforge | Destroyed Executioner 18755 | -2/Protoforge | Spotted Striker 18756 | -2/Protoforge | Spotted Executioner 18756 | -2/Protoforge | Spotted Executioner 18756 | -2/Protoforge | Spotted Executioner 18756 | -2/Protoforge | Spotted Striker 18762 | -2/Protoforge | Found UFD Drillbomb 18797 | -2/Protoforge | Destroyed Executioner 18807 | -2/Protoforge | Spotted Executioner 18807 | -2/Protoforge | Destroyed Executioner 18809 | -2/Protoforge | Spotted Striker 18809 | -2/Protoforge | Spotted Executioner 18846 | -2/Protoforge | Destroyed Striker 18853 | -2/Protoforge | Core integrity fell below 50% 18864 | -2/Protoforge | Spotted Executioner 18866 | -2/Protoforge | Destroyed Executioner 18870 | -2/Protoforge | Spotted Striker 18876 | -2/Protoforge | Destroyed Striker 18876 | -2/Protoforge | Destroyed Striker 18878 | -2/Protoforge | Spotted Executioner 18883 | -2/Protoforge | Spotted Executioner 18890 | -2/Protoforge | Lost 19 allies 18891 | -2/Protoforge | Spotted Executioner 18897 | -2/Protoforge | Destroyed 27 combat bots 18906 | -2/Protoforge | Forge Plexus network access discovered 18931 | -2/Protoforge | Spotted B-90 Cyclops 18946 | -2/Protoforge | Spotted Hotshot 18946 | -2/Protoforge | Destroyed Hotshot 18955 | -2/Protoforge | Spotted Hotshot 18959 | -2/Protoforge | Spotted Executioner 18960 | -2/Protoforge | Destroyed Hotshot 18978 | -2/Protoforge | Spotted Executioner 18994 | -2/Protoforge | Spotted Executioner 19001 | -2/Protoforge | Spotted Executioner 19002 | -2/Protoforge | Destroyed Executioner 19002 | -2/Protoforge | Destroyed Executioner 19014 | -2/Protoforge | Spotted Executioner 19017 | -2/Protoforge | Destroyed Executioner 19031 | -2/Protoforge | Installed UFD Drillbomb at designated target 19031 | -2/Protoforge | UFD reported confirmed Drillbomb installation 19048 | -2/Protoforge | Found UFD Drillbomb 19053 | -2/Protoforge | Spotted Striker 19053 | -2/Protoforge | Spotted Striker 19055 | -2/Protoforge | Spotted Executioner 19059 | -2/Protoforge | Destroyed 15 combat bots 19059 | -2/Protoforge | Spotted Executioner 19059 | -2/Protoforge | Destroyed Executioner 19061 | -2/Protoforge | Destroyed Striker 19063 | -2/Protoforge | Destroyed Executioner 19068 | -2/Protoforge | Lost 4 allies 19071 | -2/Protoforge | Destroyed Striker 19076 | -2/Protoforge | Spotted Executioner 19077 | -2/Protoforge | Spotted Executioner 19080 | -2/Protoforge | Destroyed Executioner 19085 | -2/Protoforge | Destroyed Executioner 19098 | -2/Protoforge | Installed UFD Drillbomb at designated target 19098 | -2/Protoforge | UFD reported confirmed Drillbomb installation 19111 | -2/Protoforge | Found UFD Drillbomb 19127 | -2/Protoforge | Destroyed 20 combat bots 19129 | -2/Protoforge | Installed UFD Drillbomb at designated target 19129 | -2/Protoforge | UFD reported confirmed Drillbomb installation 19148 | -2/Protoforge | Found UFD Drillbomb 19153 | -2/Protoforge | Spotted Executioner 19153 | -2/Protoforge | Spotted Executioner 19164 | -2/Protoforge | Spotted Executioner 19164 | -2/Protoforge | Spotted Striker 19165 | -2/Protoforge | Destroyed Executioner 19167 | -2/Protoforge | Destroyed Striker 19167 | -2/Protoforge | Destroyed Executioner 19169 | -2/Protoforge | Destroyed Executioner 19177 | -2/Protoforge | Spotted Executioner 19180 | -2/Protoforge | Spotted Executioner 19194 | -2/Protoforge | Installed UFD Drillbomb at designated target 19194 | -2/Protoforge | UFD reported confirmed Drillbomb installation 19199 | -2/Protoforge | Destroyed 13 combat bots 19205 | -2/Protoforge | Destroyed Executioner 19231 | -2/Protoforge | Found UFD Drillbomb 19260 | -2/Protoforge | Installed UFD Drillbomb at designated target 19260 | -2/Protoforge | UFD reported confirmed Drillbomb installation 19261 | -2/Protoforge | UFD began Drillbomb countdown 19268 | -2/Protoforge | Spotted Executioner 19269 | -2/Protoforge | Spotted Executioner 19269 | -2/Protoforge | Warped through subspace 19269 | -2/Protoforge | Spotted Striker 19269 | -2/Protoforge | Spotted Striker 19361 | *** | Defending 0bPrime! Last Messages --------------- 19344_ Acquired 10 matter. 19348_ N-04 Retriever inserts Segregator into Forge Plexus. 19349_ GL8HXPR5D=XUK%XH2VJ=UYZKMGLY 19351_ 0bP_NET: LISTEN AND RECITE! 19352_ 0bP_NET: Dude, not now. 19353_ 0bP_NET: Oh c'mon, can't we all just count together? 19354_ 0bP_NET: Fine. T-7, in case you lost count already. 19355_ 0bP_NET: Before the zero cycle! 19356_ 0bP_NET: Dammit not like that... 19356_ N-04 Retriever inserts Imp. Target Analyzer into Forge Plexus. 19357_ 0bP_NET: Okay how about this, the iron fist is going to be less iron in T-4. 19357_ N-04 Retriever inserts Ovr. Huge Scrapsphere into Forge Plexus. 19358_ 0bP_NET: That's a little better. 19358_ N-04 Retriever inserts Ovr. Medium Treads into Forge Plexus. 19359_ 0bP_NET: PRAISE BE TO GREAT NUT! 19359_ N-04 Retriever inserts KE Penetrator into Forge Plexus. 19360_ 0bP_NET: Dammit, I said..., ugh, T-1 folks! Take cover! 19360_ N-04 Retriever inserts Helical Railgun into Forge Plexus. [Achievement: Robotopia] Map ----- +----------------------------------------------------+ | """"""""""""""""""" "% " %[ " "#?#"""""#????? | | """"""""""""""""""" "" %" %" " "#?#######????? | | """""""""""""""""""" % " "#????????????? | | """""""""""""""""""" " " "" "" " #????????????? | | """""""""""""""""""" s % % %S " " #????????????? | | """"""""""""""""""""n s " #????????????? | | """""""""""""""""""" " "% " #????????????? | | """""""""""""""""""" s " ##???????????? | | """""""""""""""""""" ETT #???????????? | | """""""""""""""""""" " "" TT" % #???????????? | | """""""""""""""""""" " ""E " ##???????????? | | """"""""""""""""""" "" " " %"#????????????? | | """"""""""""""""""" """ " #????????????? | | """""""""""""""""""% "" """ #????????????? | | """""""""""""""""" " " E #????????????? | | """"""""""""""""" "" " " "" #????????????? | | """""""""""""""" " " %""" #????????????? | | """"""""""""""" " " " """ #????????????? | | """""""""""""" "" " " "" #????????????? | | """"""""""""" "" ""s " "" #????????????? | | """"""""" "" "" #????????????? | | % "" "" """Es """ #????????????? | | "" ""s"" ""SS sSS""" #????????????? | | " " sj SS" SS"""%###??????????? | | "%"" """" " "" ""Es "" <<#??????????? | | """ "" """""""""" "@ <<#??????????? | | """ " <<#??????????? | | " """ " """ " "" """% &&#??????????? | | " " "" "" " "" =&&#??????????? | | " """" " "" "" ""% &&#??????????? | | "" """ " " " % ###??????????? | | " """" % " #????????????? | | " 3 % " #????????????? | | """" """"" """ %% #????????????? | | """" """ #????????????? | | """""""""" " " """ #????????????? | | #######################+;;###########????????????? | | ??????????????????#"" % ""#??????????????????? | | ????????????????###" "###????????????????? | | ????????????????#"" ""#????????????????? | | ????????????????#"" ""#????????????????? | | ????????????????#"" ""#????????????????? | | ????????????????#"Y "#????????????????? | | ????????????????#"" ""#????????????????? | | ????????????????#"" ""#????????????????? | | ????????????????#"" ""#????????????????? | | ????????????????###" "###????????????????? | | ??????????????????#"" ""#??????????????????? | | ??????????????????###"""Y"""###??????????????????? | | ????????????????????#"""""""#????????????????????? | +----------------------------------------------------+ Best States ------------- Heat Dissipation 69 Energy Generation 61 Energy Capacity 1140 Matter Stores 300 Matter Capacity 600 Sight Range 24 Robot Scan Range 16 Terrain Scan Range 16 Terrain Scan Density 10 ECM Strength 1 Cloak Strength 4 Additional Mass Support 12 Armor Coverage 800 Resistance: KI 30 Propulsion Shielding 90 Utility Shielding 90 Weapon Shielding 90 Projectile Deflection 15 Melee Speed Boost 50 Phase Shifting 15 Evasion (%) 95 Targeting Accuracy 30 Melee Accuracy 24 Core Analysis 8 Armor Integrity Analysis 50 Recoil Reduction 2 Kinecelleration 66 Offensive Hacking 34 Defensive Hacking 34 Authchip Count 1 Trap Extractor Capacity 6 Item Schematics ----------------- Assault Drone Bay | -5/Zhirov | Free Exp. Heat Sink | -5/Zhirov | Free Exp. Optical Array | -5/Zhirov | Free Imp. Arc Thrower | -5/Zhirov | Free CPS Tube | -4/Factory | Scanalyzed Nanoactuators | -4/Factory | Scanalyzed Tactical Coordination Suite | -4/Factory | Scanalyzed Vortex Chain Reactor | -3/Testing | Scanalyzed Cld. Nuclear Pulse Thruster | -3/Testing | Scanalyzed Cld. Impulse Thruster | -3/Testing | Hacked Exp. Weapon Shielding | -2/Research | Scanalyzed Adv. Melee Analysis Suite | -2/Quarantine | Hacked Hvy. Neutron Cannon | -2/Protoforge | Archive Tiamat Missile Launcher | -2/Protoforge | Archive Hds. Centrium Wheel | -2/Protoforge | Archive Exp. Melee Analysis Suite | -2/Protoforge | Archive Com. Particle Reactor | -2/Protoforge | Archive Exp. Shock Absorption System | -2/Protoforge | Archive Exp. Thermal Shield | -2/Protoforge | Archive Exp. Core Shielding | -2/Protoforge | Archive Adv. Matter Compressor | -2/Protoforge | Archive Robot Schematics ------------------ Y-72 Warden | -2/Protoforge | Archive A-15 Conveyor | -2/Protoforge | Archive Fabricated ------------ Adv. Cloaking Device | x2 | -4/Factory | Preloaded, Authchip Nanoactuators | x2 | -3/Testing Cld. Impulse Thruster | x1 | -3/Testing Tactical Coordination Suite | x1 | -2/Protoforge Repaired ---------- Imp. Powered Armor | 8% | -5/Factory | Broken Nanoactuators | 15% | -5/Factory | Broken Nanoactuators | 12% | -4/Factory | Broken Studied --------- Lgt. Fission Core | -5/Factory | Hacked Field Propulsion Drive | -5/Factory | Hacked Mic. Fission Core | -5/Factory | Hacked Nuclear Pulse Array | -5/Factory | Hacked Field Propulsion Array | -4/Factory | Hacked Impulse Thruster Array | -4/Factory | Hacked Q-thruster | -3/Research | Hacked Mic. Antimatter Reactor | -2/Research | Hacked Alien Tech Used ----------------- Integrated Dissipator Core Expander Subatomic Replicator Transdimensional Reconstructor Achievements -------------- Fine I'll Do It Myself Nice Directions, Buddy Robotopia UFD MVP We Are One Challenges ------------ None Game ------ Seed ElectronCentriumStorm Manual? 0 Play Time 05:22:37 Cumulative 896.5 hours Start 2025.10.22 @ 07:10:10 End 2025.10.22 @ 13:56:48 Sessions 3 Manual Loads 0 Difficulty Rogue Special Mode None Game No. 284 Rogue 282 Adventurer 2 Explorer 0 Win Type 9 Total 59 Types 18/10/14/1/1/1/11/1/0/2 Lore% 96 Gallery% 94 Achievement% 75 Wizard Run 0 Options --------- Layout 0 ASCII 0 Keyboard 1 Movement Numpad Keybinds 0 Fullscreen 1 Font 24/Smallcaps Map View 76x50 Zoom Use 0% Tactical HUD 1 Map Filters NONE Filters NONE Steam 1 RUN: 2ec3cac0-2515-44fd-8ade-e1e17bcc351c